{"text_format":"1","workbook":"xlsx","n_sheets":5,"sheets":["Quiz","Musée","Diapo","Mouvements","Data"],"not_rendered":{"charts":0,"images":133,"macros":1,"external_links":0,"defined_names":7,"comments":1,"pivot_tables":0},"unopened":[],"bounds":{"document_bytes":16777216,"sheet_cells":100000,"rows_first":2000,"rows_last":500,"rows_between":2000,"halvings":0,"cell_chars":16384,"cell_head_chars":4096},"cells_cut":0,"cells_raw":0,"read":"whole","date_system":"1900"}

{"sheet":"Quiz","index":0,"n_rows":120,"n_cols":43,"rows_kept":120,"cut":false,"hidden":false,"merged":[[117,2,117,3],[118,2,118,3],[114,4,114,8],[115,4,115,8],[116,4,116,8],[117,4,117,8],[118,4,118,8],[97,2,97,3],[114,2,114,3],[115,2,115,3],[116,2,116,3],[104,2,104,3],[100,2,100,3],[101,2,101,3],[102,2,102,3],[103,2,103,3],[105,2,105,3],[106,2,106,3],[107,2,107,3],[108,2,108,3],[109,2,109,3],[80,2,80,3],[79,2,79,3],[79,4,79,8],[81,2,81,3],[82,2,82,3],[80,4,80,8],[81,4,81,8],[82,4,82,8],[17,26,19,26],[1,24,1,25],[79,26,104,26],[10,3,10,5],[3,2,3,6],[7,3,7,5],[9,3,9,5],[1,1,1,7],[4,6,6,6],[8,3,8,5],[13,1,13,2],[98,2,98,3],[99,2,99,3],[95,4,95,8],[96,4,96,8],[97,4,97,8],[100,4,100,8],[101,4,101,8],[102,4,102,8],[103,4,103,8],[104,4,104,8],[96,2,96,3],[83,4,83,8],[84,4,84,8],[85,4,85,8],[86,4,86,8],[87,4,87,8],[83,2,83,3],[84,2,84,3],[85,2,85,3],[86,2,86,3],[87,2,87,3],[109,4,109,8],[98,4,98,8],[99,4,99,8],[88,2,88,3],[89,2,89,3],[90,2,90,3],[91,2,91,3],[92,2,92,3],[93,2,93,3],[94,2,94,3],[95,2,95,3],[88,4,88,8],[89,4,89,8],[90,4,90,8],[91,4,91,8],[92,4,92,8],[12,6,12,7],[1,0,2,0],[113,2,113,3],[110,4,110,8],[111,4,111,8],[112,4,112,8],[113,4,113,8],[93,4,93,8],[94,4,94,8],[110,2,110,3],[111,2,111,3],[112,2,112,3],[105,4,105,8],[106,4,106,8],[107,4,107,8],[108,4,108,8]]}
[]
[120,{"$f":"IF(AF4<1,\"\",IF(AO6=2,\"À quel mouvement appartient cette œuvre ?\",\"Connaissez-vous l'auteur de cette œuvre ?\"))","v":""},null,null,null,null,null,null,null,null,null,null,null,null,null,null,null,null,null,null,null,null,null,null,null,null,{"$f":"IF(AF4=0,\"\",\"Dimensions de la peinture : \"&AL6&\" cm.\")","v":"Dimensions de la peinture : 0 x 0 cm."},"AB","AC","AD","AE","AF","AG"]
[null,null,null,null,null,null,null,null,null,null,null,null,null,null,null,null,null,null,null,null,null,null,null,null,null,null,"                 1 mètre                                2 mètres                                          "]
[null,null,null,null,null,null,null,null,null,null,null,null,null,null,null,null,null,null,null,null,null,null,null,null,null,null,null,null,null,null,"nbques pour test",-1,null,null,null,null,null,"Hauteur","Largeur"]
[null,null,null,null,null,null,{"$f":"IF(OR(AO6=1,AO6=3),IF(AF6=0,AF10,IF(AF8=\"Non\",\"D\",\"C\")),IF(AO5=0,AF10,IF(AO9=\"Non\",\"D\",\"C\")))","v":""},null,null,null,null,null,null,null,null,null,null,null,null,null,null,null,null,null,null,null,{"$f":"IF($AF$4>1,\"\",\"1. Cliquer sur 'Nouvelle série' pour débuter un QUIZ. Choisir Peintres ou Mouvements\")","v":"1. Cliquer sur 'Nouvelle série' pour débuter un QUIZ. Choisir Peintres ou Mouvements"},null,null,"Nombre tiré pour image du musée",null,45,"AF5 -de 1 à 40                                Boutons séries :",1,"Série :",1,"Case à cocher liste",{"$f":"VLOOKUP($AF$5,chrono,$AJ$8)","v":0},{"$f":"VLOOKUP($AF$5,chrono,$AJ$8+1)","v":0},"Renvoi du menu",0,"Texte pour réponse :",{"$f":"IF(OR(AO6=1,AO6=3),VLOOKUP(AF5,chrono,AJ7),VLOOKUP(AF5,chrono,2))","v":"   "}]
[null,null,null,null,null,null,null,null,null,null,null,null,null,null,null,null,null,null,null,null,null,null,null,null,null,null,{"$f":"IF($AF$4>1,\"\",\"2. Cliquer sur Tirage (Ctrl + q)   ou  clic sur une peinture pour afficher une nouvelle oeuvre.\")","v":"2. Cliquer sur Tirage (Ctrl + q)   ou  clic sur une peinture pour afficher une nouvelle oeuvre."},null,null,"Nombre renvoyé par le menu déroulant",null,0,"AF6  Renvoie 2 pour 1 de la liste",null,"déc image",{"$f":"IF(AJ5=1,0,IF(AJ5=2,7,14))","v":0},null,{"$f":"AL5&\" x \"&AM5","v":"0 x 0"},{"$f":"IF(OR(AL5>100,AM5>100),1,0)","v":0},"Bouton Peintre ou Style",1,"menu déroulant bis",{"$f":"IF(OR(AO6=1,AO6=3),AF5,AO7)","v":45}]
[null,null,null,null,null,null,null,null,null,null,null,null,null,null,null,null,null,null,null,null,null,null,null,null,null,null,{"$f":"IF($AF$4>1,\"\",\"3. Choisir le peintre ou le mouvement dans le menu déroulant.\")","v":"3. Choisir le peintre ou le mouvement dans le menu déroulant."},null,null,"Correspondance menu",null,{"$f":"IF(AF6=0,0,VLOOKUP(AF6 -1,Alpha,2))","v":0},"AF7",null,"déc. Tab",{"$f":"IF(AJ5=1,3,IF(AJ5=2,6,9))","v":3},"Menu en 2 parties",null,{"$f":"IF(AM5=0,\"H\",IF(AM5/1.15>AL5,\"L\",\"H\"))","v":"H"},"La bonne réponse a est  : ",{"$f":"VLOOKUP($AF$5,chrono,14)","v":0},"La bonne réponse b est :",{"$f":"VLOOKUP($AF$5,chrono,15)","v":0}]
[null,null,null,{"$f":"IFERROR(IF(AQ6=0,\"\",IF(AQ9=\"OK\",AQ5,\"\")),\" \" )","v":""},null,null,null,null,null,null,null,null,null,null,null,null,null,null,null,null,null,null,null,null,null,null,{"$f":"IF($AF$4>1,\"\",\"    Le pouce vert en haut indique que le choix est JUSTE.\")","v":"    Le pouce vert en haut indique que le choix est JUSTE."},null,null,"Juste ou faux",null,{"$f":"IF(AO6=3,AF12,AF11)","v":"Non"},"AF8",null,"dec dim",{"$f":"IF(AJ5=1,16,IF(AJ5=2,18,20))","v":16},null,{"$f":"IF(AF5=45,1,IF(AF4=0,0,1))","v":1},"G","Nb points max.",{"$f":"IF(G14>AF4-1,(AF4-1)*1.5,AF4-1)","v":-3},"Masque, vrai-faux",false]
[null,null,null,{"$f":"IF(AF5=41,\"Réponse avec le menu ci-dessus\",IF(AF4>AJ10,\"La série est terminée !\",\"\"))","v":""},null,null,null,{"$f":"IF(AF9=FALSE,\"\",VLOOKUP(AF5,chrono,IF(OR(AO6=1,AO6=3),22,27)))","v":""},null,null,null,null,null,null,null,null,null,null,null,null,null,null,null,null,null,null,null,null,"musée","Indice",null,null,"AF9",null,null,null,"Tirage sans réponse :",null,null,"Juste au faux",{"$f":"IF(OR(AO5-1=AO7,  AO5-1=AQ7),\"OK\",\"non\")","v":"non"},"couleur de la main",{"$f":"IF(OR(AO6=1,AO6=3),AF8,AO9)","v":"Non"}]
[null,null,null,{"$f":"IF(AF7=0,\"\",IF(AF8=\"OK\",VLOOKUP(AF5,chrono,AJ7+1),\"\"))","v":""},null,null,null,null,null,null,null,null,null,null,null,null,null,null,null,null,null,null,null,null,null,null,{"$f":"IF($AF$4>1,\"\",\"L'indice donne une fourchette pour la première lettre du nom du peintre\")","v":"L'indice donne une fourchette pour la première lettre du nom du peintre"},null,null,null,"Souris :",{"$f":"IF(AF5>37,\"\",IF(AF6=0,8,\"\"))","v":""},null,null,"nb total de Q",40]
[null,null,null,{"$f":"IF(AF7=0,\"\",IF(AF8=\"OK\",VLOOKUP(AF5,chrono,12),\"\"))","v":""},null,null,null,null,null,null,null,null,null,null,null,null,null,null,null,null,null,null,null,null,null,null,{"$f":"IF($AF$4>1,\"\",\"ou du mouvement, mais ça vous coûtera un demi-point !\")","v":"ou du mouvement, mais ça vous coûtera un demi-point !"},null,null,"Juste ou faux",null,{"$f":"(IF($AF$7<>$AF$5,\"Non\",\"OK\"))","v":"Non"}]
[null,null,null,null,null,null,null,null,null,null,null,null,null,null,null,null,null,null,null,null,null,null,null,null,null,null,null,null,null,"Juste ou faux ABCD",null,{"$f":"(IF(AN30=0,\"Non\",\"OK\"))","v":{"$error":"#N/A"}}]
[null,null,null,null,null,null,"Résultat final",null,null,null,null,null,null,null,null,null,null,null,null,null,null,null,null,null,null,null,{"$f":"IF($AF$4>1,\"\",\"Après le 'Tirage', le système attend une réponse. Si vous souhaitez passer les oeuvres\")","v":"Après le 'Tirage', le système attend une réponse. Si vous souhaitez passer les oeuvres"}]
[null,{"$f":"IF(AF4>AJ10,AJ10&\"/ \"&AJ10,AF4&\"/ \"&AJ10&\"           \")","v":"-1/ 40           "},null,null,null,null,null,{"$f":"IF(G14>1,\"points / \"&AO8,\"point\")","v":"point"},"t",null,null,null,null,null,null,null,null,null,null,null,null,null,null,null,null,null,{"$f":"IF($AF$4>1,\"\",\"sans avoir à  choisir avec le menu, cochez la case 'Réponse orale'.\")","v":"sans avoir à  choisir avec le menu, cochez la case 'Réponse orale'."}]
[null,null,null,null,null,null,"(Ctl + q)"]
[null,null,null,null,null,null,null,null,null,null,null,null,null,null,null,null,null,null,null,null,null,null,null,null,null,null,{"$f":"IF($AF$4>1,\"\",\"Pendant ou à la fin d'une série la liste des tirages peut-être éditée avec la case\")","v":"Pendant ou à la fin d'une série la liste des tirages peut-être éditée avec la case"}]
[null,null,null,null,null,null,null,null,null,null,null,null,null,null,null,null,null,null,null,null,null,null,null,null,null,null,{"$f":"IF($AF$4>1,\"\",\"'Liste de la série en cours'. Les erreurs y sont signalées et les peintures revues une à une.\")","v":"'Liste de la série en cours'. Les erreurs y sont signalées et les peintures revues une à une."}]
[null,null,null,null,null,null,null,null,null,null,null,null,null,null,null,null,null,null,null,null,null,null,null,null,null,null,{"$f":"IF($AF$4>2,\"\",\"Si vous répondez à  Peintres et à  Mouvements dans le même tirage, cliquez sur la case 'Solution masquée' pour cacher les réponses !\")","v":"Si vous répondez à  Peintres et à  Mouvements dans le même tirage, cliquez sur la case 'Solution masquée' pour cacher les réponses !"}]
[]
["a"]
[]
[null,null,null,null,null,null,null,null,null,null,null,null,null,null,null,null,null,null,null,null,null,null,null,null,null,null,{"$f":"IF($AF$4>1,\"\",\"-> Pour rafraîchir votre culture, regardez la feuille des miniatures 'Musée' ou la feuille 'Diapo'.\" )","v":"-> Pour rafraîchir votre culture, regardez la feuille des miniatures 'Musée' ou la feuille 'Diapo'."},null,null,null,null,null,null,"Quiz ABCD"]
[null,null,null,null,null,null,null,null,null,null,null,null,null,null,null,null,null,null,null,null,null,null,null,null,null,null,{"$f":"IF($AF$4>1,\"\",\"    Trois œuvres célèbres de 40 peintres de 1303 à 1989 attendent votre visite.\")","v":"    Trois œuvres célèbres de 40 peintres de 1303 à 1989 attendent votre visite."},null,null,null,null,null,null,34,35,36,37,38,39,40,41]
[null,null,null,null,null,null,null,null,null,null,null,null,null,null,null,null,null,null,null,null,null,null,null,null,null,null,{"$f":"IF($AF$4>1,\"\",\"-> La feuille 'Mouvements' donne les clés de l'histoire de l'art.\")","v":"-> La feuille 'Mouvements' donne les clés de l'histoire de l'art."},null,null,null,null,null,null,"G","H","I","J/10","K","L","M"]
[null,null,null,null,null,null,null,null,null,null,null,null,null,null,null,null,null,null,null,null,null,null,null,null,null,null,null,null,null,null,null,null,null,25,"Tirage abcd",1,22]
[null,null,null,null,null,null,null,null,null,null,null,null,null,null,null,null,null,null,null,null,null,null,null,null,null,null,null,null,null,null,null,null,null,26,null,2,5]
[null,null,null,null,null,null,null,null,null,null,null,null,null,null,null,null,null,null,null,null,null,null,null,null,null,null,null,null,null,null,null,null,null,27,null,3,34]
[null,null,null,null,null,null,null,null,null,null,null,null,null,null,null,null,null,null,null,null,null,null,null,null,null,null,null,null,null,null,null,null,null,28,null,4,10,null,"rep ABCD",{"$f":"AF6","v":0}]
["© Y. Péguiron - version 1 - 14.02.2024",null,null,null,null,null,null,null,null,null,null,null,null,null,null,null,null,null,null,null,null,null,null,null,null,null,null,null,null,null,null,null,null,29,null,5,null,null,"v ABCD",{"$f":"MATCH(5,AN31:AN35,0)","v":{"$error":"#N/A"}},null,null,45]
[null,null,null,null,null,null,null,null,null,null,null,null,null,null,null,null,null,null,null,null,null,null,null,null,null,null,null,null,null,null,null,null,null,30,null,"rang",null,null,"Juste =1",{"$f":"IF(AN28=AN29,1,0)","v":{"$error":"#N/A"}}]
[null,null,null,null,null,null,null,null,null,null,null,null,null,null,null,null,null,null,null,null,null,null,null,null,null,null,null,null,null,null,null,null,null,31,"A",{"$f":"RANK(AK25,$AK$25:$AK$29)","v":2},{"$f":"VLOOKUP(AJ31,$AJ$25:$AK$29,2)","v":5},1,{"$f":"\"A - \"&VLOOKUP(AK31,Data!$A$3:$B$42,2)","v":"A - Sébastien Bourdon"},{"$f":"AJ31","v":2}]
[null,null,null,null,null,null,null,null,null,null,null,null,null,null,null,null,null,null,null,null,null,null,null,null,null,null,null,null,null,null,null,null,null,32,"B",{"$f":"RANK(AK26,$AK$25:$AK$29)","v":4},{"$f":"VLOOKUP(AJ32,$AJ$25:$AK$29,2)","v":10},2,{"$f":"\"B - \"&VLOOKUP(AK32,Data!$A$3:$B$42,2)","v":"B - Jean-Siméon Chardin"},{"$f":"AJ32","v":4}]
[null,null,null,null,null,null,null,null,null,null,null,null,null,null,null,null,null,null,null,null,null,null,null,null,null,null,null,null,null,null,null,null,null,33,"C",1,22,3,{"$f":"\"C - \"&VLOOKUP(AK33,Data!$A$3:$B$42,2)","v":"C - Eugène Burnand"},1]
[null,null,null,null,null,null,null,null,null,null,null,null,null,null,null,null,null,null,null,null,null,null,null,null,null,null,null,null,null,null,null,null,null,34,"D",3,34,4,{"$f":"\"D - \"&VLOOKUP(AK34,Data!$A$3:$B$42,2)","v":"D - Victor Brauner"},3]
[null,null,null,null,null,null,null,null,null,null,null,null,null,null,null,null,null,null,null,null,null,null,null,null,null,null,null,null,null,null,null,null,null,35,"E",{"$error":"#N/A"},{"$error":"#N/A"},5,{"$f":"\"E - \"&VLOOKUP(AK35,Data!$A$3:$B$42,2)","v":{"$error":"#N/A"}},{"$error":"#N/A"}]
[null,null,null,null,null,null,null,null,null,null,null,null,null,null,null,null,null,null,null,null,null,null,null,null,null,null,null,null,null,null,null,null,null,null,null,null,null,"lettre juste",{"$f":"VLOOKUP(AN29+30,AH31:AI35,2)","v":{"$error":"#N/A"}}]
[]
[]
[]
[]
[]
[]
[]
[]
[]
[]
[]
[]
[]
[]
[]
[]
[]
[]
[]
[]
[]
[]
[]
[]
[]
[]
[]
[]
[]
[]
[]
[]
[]
[]
[]
[]
[]
[]
[]
[null,null,null,null,null,null,null,null,null,null,null,null,null,"H","L"]
[null,null,null,null,null,null,null,null,null,null,null,null,{"$f":"N77&\"x\"&O77","v":"1x1"},{"$f":"IF(N79=0,1,VLOOKUP(M79,$B$80:$O$120,13))","v":1},{"$f":"IF(N79=0,1,VLOOKUP(M79,$B$80:$O$119,14))","v":1}]
[null,null,null,null,null,null,null,null,null,null,null,"?","déroul","image","décal"]
[null,"Liste des tirages de la dernière série :",null,null,null,null,null,null,null,"serie","decal","musee",1,{"$f":"VLOOKUP(M79,$B$80:$M$120,12)","v":0},{"$f":"VLOOKUP(M79,B80:L120,11)","v":14},"x","decdim"]
[0,1,{"$f":"IF(A80=0,\"\",T80&VLOOKUP(A80,chrono,2))","v":""},null,{"$f":"IF(A80=0,\"\",VLOOKUP(A80,chrono,IF($AO$6=1,K80,12))&\"   -  \"&VLOOKUP(A80,chrono,K80+1))","v":""},null,null,null,null,0,{"$f":"IF(J80=1,3,IF(J80=2,6,9))","v":9},{"$f":"IF(J80=1,0,IF(J80=2,7,14))","v":14},{"$f":"A80","v":0},{"$f":"VLOOKUP(A80,chrono,Q80)","v":1},{"$f":"VLOOKUP(A80,chrono,Q80+1)","v":1},"x",{"$f":"IF(J80=1,16,IF(J80=2,18,20))","v":20},null,null,{"$f":"IF(S80=\"\",\"\",S80&\" - \")","v":""}]
[0,2,"",null,"",null,null,null,null,0,{"$f":"IF(J81=1,3,IF(J81=2,6,9))","v":9},{"$f":"IF(J81=1,0,IF(J81=2,7,14))","v":14},{"$f":"A81","v":0},1,1,"x",{"$f":"IF(J81=1,16,IF(J81=2,18,20))","v":20},null,null,{"$f":"IF(S81=\"\",\"\",S81&\" - \")","v":""}]
[0,3,"",null,"",null,null,null,null,0,9,14,0,1,1,"x",20,null,null,""]
[0,4,"",null,"",null,null,null,null,0,9,14,0,1,1,"x",20,null,null,""]
[0,5,"",null,"",null,null,null,null,0,9,14,0,1,1,"x",20,null,null,""]
[0,6,"",null,"",null,null,null,null,0,9,14,0,1,1,"x",20,null,null,""]
[0,7,"",null,"",null,null,null,null,0,9,14,0,1,1,"x",20,null,null,""]
[0,8,"",null,"",null,null,null,null,0,9,14,0,1,1,"x",20,null,null,""]
[0,9,"",null,"",null,null,null,null,0,9,14,0,1,1,"x",20,null,null,""]
[0,10,"",null,"",null,null,null,null,0,9,14,0,1,1,"x",20,null,null,""]
[0,11,"",null,"",null,null,null,null,0,9,14,0,1,1,"x",20,null,null,""]
[0,12,"",null,"",null,null,null,null,0,9,14,0,1,1,"x",20,null,null,""]
[0,13,"",null,"",null,null,null,null,0,9,14,0,1,1,"x",20,null,null,""]
[0,14,"",null,"",null,null,null,null,0,9,14,0,1,1,"x",20,null,null,""]
[0,15,"",null,"",null,null,null,null,0,9,14,0,1,1,"x",20,null,null,""]
[0,16,"",null,"",null,null,null,null,0,9,14,0,1,1,"x",20,null,null,""]
[0,17,"",null,"",null,null,null,null,0,9,14,0,1,1,"x",20,null,null,""]
[0,18,"",null,"",null,null,null,null,0,9,14,0,1,1,"x",20,null,null,""]
[0,19,"",null,"",null,null,null,null,0,9,14,0,1,1,"x",20,null,null,""]
[0,20,"",null,"",null,null,null,null,0,9,14,0,1,1,"x",20,null,null,""]
[0,21,"",null,"",null,null,null,null,0,9,14,0,1,1,"x",20,null,null,""]
[0,22,"",null,"",null,null,null,null,0,9,14,0,1,1,"x",20,null,null,""]
[0,23,"",null,"",null,null,null,null,0,9,14,0,1,1,"x",20,null,null,""]
[0,24,"",null,"",null,null,null,null,0,9,14,0,1,1,"x",20,null,null,""]
[0,25,"",null,"",null,null,null,null,0,9,14,0,1,1,"x",20,null,null,""]
[0,26,"",null,"",null,null,null,null,0,9,14,0,1,1,"x",20,null,null,""]
[0,27,"",null,"",null,null,null,null,0,9,14,0,1,1,"x",20,null,null,"",null,null,null,null,null,null,{"$f":"IF(N79=0,\"\",VLOOKUP(N79,chrono,2))","v":""}]
[0,28,"",null,"",null,null,null,null,0,9,14,0,1,1,"x",20,null,null,"",null,null,null,null,null,null,{"$f":"IF(N79=0,\"\",VLOOKUP(N79,chrono,12))","v":""}]
[0,29,"",null,"",null,null,null,null,0,9,14,0,1,1,"x",20,null,null,"",null,null,null,null,null,null,"                                                                                                                                                                                                         "]
[0,30,"",null,"",null,null,null,null,0,9,14,0,1,1,"x",20,null,null,""]
[0,31,"",null,"",null,null,null,null,0,9,14,0,1,1,"x",20,null,null,""]
[0,32,"",null,"",null,null,null,null,0,9,14,0,1,1,"x",20,null,null,"",null,null,null,null,null,null,"                        Revoir la peinture no :"]
[0,33,"",null,"",null,null,null,null,0,9,14,0,1,1,"x",20,null,null,""]
[0,34,"",null,"",null,null,null,null,0,9,14,0,1,1,"x",20,null,null,"",null,null,null,null,null,null,"                1 mètre"]
[0,35,"",null,{"$f":"IF(A114=0,\"\",VLOOKUP(A114,chrono,IF($AO$6=1,K114,12))&\"   -  \"&VLOOKUP(A114,chrono,K114+1))","v":""},null,null,null,null,0,9,14,0,1,1,"x",20,null,null,""]
[0,36,"",null,"",null,null,null,null,0,9,{"$f":"IF(J115=1,0,IF(J115=2,7,14))","v":14},{"$f":"A115","v":0},1,1,"x",20,null,null,"",null,null,null,null,null,null,"<-- Dimension du tableau en cm"]
[0,37,"",null,"",null,null,null,null,0,9,14,0,1,1,"x",20,null,null,""]
[0,38,"",null,"",null,null,null,null,0,9,14,0,1,1,"x",20,null,null,""]
[0,39,"",null,"",null,null,null,null,0,9,14,0,1,1,"x",20,null,null,""]
[0,40,"",null,"",null,null,null,null,0,9,{"$f":"IF(J119=1,0,IF(J119=2,7,14))","v":14},{"$f":"A119","v":0},1,1,"x",20,null,null,""]
[null,41,null,null,null,null,null,null,null,null,null,null,null,{"$f":"VLOOKUP(A120,chrono,K120+11)","v":"   "},{"$f":"VLOOKUP(A120,chrono,K120+12)","v":"    "},"x",null,null,null,""]

{"sheet":"Musée","index":1,"n_rows":198,"n_cols":50,"rows_kept":198,"cut":false,"hidden":false,"merged":[[2,0,5,0],[9,0,12,0],[16,0,19,0]]}
[null,1,2,3,4,5,6,7,8,9,10,11,12,13,14,15,16,17,18,19,20,21,22,23,24,25,26,27,28,29,30,31,32,33,34,35,36,37,38,39,40,41,42,43,44,45,46,50,51,52]
[null,null,null,null,null,null,null,null,null,null,null,null,null,null,null,null,null,null,null,null,null,null,null,null,null,null,null,null,null,null,null,null,null,null,null,null,null,null,null,null,null,null,"Bravo !",null,null,"                                                                                                                                                                 ","OK !   Nouvelle série en préparation…                  Voir infos ci-contre --->"]
["A","Vittore Carpaccio","Agnolo Bronzino","Giuseppe Arcimboldo","Antoine van Dyck","Sébastien Bourdon","Georges de La Tour","Johannes Vermeer","Antoine Watteau","François Boucher","Jean-Siméon Chardin","Joshua Reynolds","Caspar-David Friedrich","John Constable","Francesco Hayez","Camille Corot","Albert Anker","Jules Breton","Rosa Bonheur","Gustave Caillebotte","Jean-Louis Forain","Alfred Sisley","Eugène Burnand","Vincent Van Gogh","Edvard Munch","Cassius-Marcellus Coolidge","Max Liebermann","Alberto Giacometti","André Derain","Félix Vallotton","Franz Muller-Gossen","Piet Mondrian","Vassily Kandinsky","René Auberjonois","Victor Brauner","Man Ray (Radnitzky)","Marc Chagall","Jean Dubuffet","Andy Warhol","Hans Erni","Vladimir Volegov"]
[null,1516,1530,1573,1617,1635,1640,1658,1710,1734,1735,1773,1818,1819,1835,1861,1862,1862,1867,1875,1880,1881,1883,1889,1892,1894,1898,1903,1905,1907,1909,1910,1913,1920,1937,1938,1947,1956,1962,1983,2009]
[null,"Le Lion de Sant-Marc","Pygmalion et Galatée","L'Automne","Silène ivre","Les Mendiants","Saint Jacques","La Laitière","Le Dénicheur de moineaux","Renaud et Armide","La Blanchisseuse","Les Sœurs Montgomery","Le Voyageur et une mer de nuages","Le Cheval blanc","Ruth","L'Étang de Ville d'Avray","l'Examen scolaire","Deux vendangeuses","Biches et cerf au repos","Les Raboteurs de parquet","La funambule","Petits Prés au printemps, By","La Ferme suisse","Les Tournesols","Mélancolie","Poker Game","Garçons se baignant","La Nuit","Bateaux dans le port de Collioure","Trois femmes dans l'eau","Fuldrigger","Arbre rouge","Carrés et cercles concentriques","La minoterie, Lavaux","L’homme dans un intérieur","Le Rébus","Le Violoniste Bleu","La Pointe au pitre","Boîtes de soupe Campbell's","Olympic series, tennis","Sailing Vessel"]
[null,"Palais des Doges - Venise","Galerie des Offices, Florence","Musée du Louvre, Paris","Gemäldegalerie Alte Meister - Dresde","Musée du Louvre, Paris","Collection Privée","Rijksmuseum, Amsterdam","National Galleries of Scotland, Edinburgh","Musée du Louvre, Paris","Ermitage, Saint-Pétersbourg","Tate Gallery, Londres","Kunsthalle, Hambourg","Frick Collection, New York","Museum of John Paul II Collection","Musée des Beaux-Arts, Strasbourg","Kunstmuseum, Bern","Joslyn Art Museum, Omaha (Nebraska)","Institute of Arts, Detroit","Musée d'Orsay","Art Institute, Chicago","Tate  Gallery, Londres","Musées d'art et d'histoire, Genève","Van Gogh Museum, Amsterdam","KODE Art Museums, Bergen ","Collection privée","Neue Pinakothek, Munich","Kunsthaus,, Zürich"," Fondation Merzbacher,  Paris","Kunstmuseum, Bâle","Stadtmuseum, Warleberger Hof","Kunstmuseum Den Haag","Stadtische Galerie, Munich","MCBA, Lausanne"," The Surrealist Art Centre, London","Centre Pompidou, Paris","Collection privée","Stedelijk Museum, Amsterdam","MoMa, New York","Musée Olympique, Lausanne","Collection privée"]
[]
[]
[null,null,null,null,null,null,null,null,null,null,null,null,null,null,null,null,null,null,null,null,null,null,null,null,null,null,null,null,null,null,null,null,null,null,null,null,null,null,null,null,null,null,"Bravo !"]
["B",{"$f":"B3","v":"Vittore Carpaccio"},{"$f":"C17","v":"Agnolo Bronzino"},{"$f":"D3","v":"Giuseppe Arcimboldo"},"Antoine van Dyck","Sébastien Bourdon","Georges de La Tour","Johannes Vermeer","Antoine Watteau",{"$f":"J3","v":"François Boucher"},{"$f":"K3","v":"Jean-Siméon Chardin"},"Joshua Reynolds","Caspar-David Friedrich","John Constable","Francesco Hayez","Camille Corot","Albert Anker","Jules Breton","Rosa Bonheur",{"$f":"T3","v":"Gustave Caillebotte"},{"$f":"U3","v":"Jean-Louis Forain"},"Alfred Sisley","Eugène Burnand","Vincent Van Gogh","Edvard Munch",{"$f":"Z3","v":"Cassius-Marcellus Coolidge"},{"$f":"AA3","v":"Max Liebermann"},"Alberto Giacometti",{"$f":"AC3","v":"André Derain"},"Félix Vallotton","Franz Muller-Gossen","Piet Mondrian","Vassily Kandinsky","René Auberjonois",{"$f":"AI17","v":"Victor Brauner"},"Man Ray (Radnitzky)","Marc Chagall","Jean Dubuffet","Andy Warhol","Hans Erni","Vladimir Volegov"]
[null,1490,1540,1588,1618,1638,1650,1662,1717,1740,1736,1778,1818,1821,1842,1864,{"$f":"Q4","v":1862},1863,1879,1877,1884,1883,1884,1890,1893,1903,1902,1950,1906,1921,1913,1921,1922,1923,1937,1915,1956,1972,1964,1952,2016]
[null,"Chasse sur la lagune","Allégorie du triomphe de Vénus","The Vegetable Gardener","Le Couronnement d'Epines","L'Osteria au fumeur de pipe","Les Joueurs de dés","Femme lisant une lettre","La Gamme d'Amour","Léda et le Cygne","Le Château de cartes","Lady Caroline Howard","Falaises de craie à Rügen","La Charrette de foin","Samson","Souvenir de Mortefontaine","Le secrétaire de Commune","Les Faucheurs","Portrait de lion","Rue de Paris, temps de pluie","Le pêcheur","Les Bords du Loing","Taureau dans les Alpes","Iris","Le Vampire","A Friend in Need","La promenade aux perroquets","Pommes dans l'Atelier","La Danse","Premiers rayons","Voilier","Tableau  no1","Petits Mondes","Les Hommes du Port","Antithèse","A l'Observatoire - Les Amoureux","La Création de l'homme","Le Précepteur","Fleurs","Chevaux II","New Flowers"]
[null,"Getty Museum Los Angeles","National Gallery , Londres","Museo Civico Ala Ponzone","Musée du Prado - Magrid","Musée Fabre, Montpellier"," Preston Hall, Stockton-on-Tees","Galerie nationale d'Irlande, Dublin","National Gallery, Londres","Nationalmuseum, Stockholm","National Gallery, Washington","National Gallery of Art","Musée des Beaux-Arts, Winterthour","National Gallery, Londres","Gallerie des Offices, Florence","Musée du Louvre, Paris","MCBA, Lausanne","Musée Kelvingrove, Glasgow","Prado","Art Institure - Chicago"," City Art Gallery, Southampton","Fondation Bemberg, Toulouse","MCBA, Lausanne","MoMA, New York","Museum of Art, Gothenburg","Collection privée","Kunsthalle, Brême","Collection particulière","Collection privée","Collectio n  privée","Moinat Antiquités - Lausanne","Fondation Beyeler, Riehen","National Gallery of Denmark, Copenhagen","MCBA, Lausanne","Centre Pompidou, Paris","Naumann Fine Art, New York","Musée national Marc Chagall, Nice","MCBA, Lausanne","MoMa, New York","Collection privée","Collection privée"]
[]
[null,null,null,null,"   ",null,null,null,null,null,null,null,null,null,null,null,null,null,null,"   "]
[null,null,null,null,null,null,null,null,null,null,null,null,null,null,null,null,null,null,null,null,null,null,null,null,null,null,null,null,null,null,null,null,null,null,null,null,null,null,null,null,null,null,"Bravo !"]
["C",{"$f":"B3","v":"Vittore Carpaccio"},"Agnolo Bronzino",{"$f":"D3","v":"Giuseppe Arcimboldo"},"Antoine van Dyck","Sébastien Bourdon",{"$f":"G10","v":"Georges de La Tour"},"Johannes Vermeer","Antoine Watteau",{"$f":"J3","v":"François Boucher"},{"$f":"K3","v":"Jean-Siméon Chardin"},"Joshua Reynolds","Caspar-David Friedrich","John Constable","Francesco Hayez","Camille Corot","Albert Anker",null,"Rosa Bonheur",{"$f":"T3","v":"Gustave Caillebotte"},{"$f":"U3","v":"Jean-Louis Forain"},"Alfred Sisley","Eugène Burnand","Vincent Van Gogh","Edvard Munch",{"$f":"Z3","v":"Cassius-Marcellus Coolidge"},{"$f":"AA3","v":"Max Liebermann"},"Alberto Giacometti",{"$f":"AC3","v":"André Derain"},"Félix Vallotton","Franz Muller-Gossen","Piet Mondrian","Vassily Kandinsky","René Auberjonois","Victor Brauner","Man Ray (Radnitzky)","Marc Chagall","Jean Dubuffet","Andy Warhol","Hans Erni","Vladimir Volegov"]
[null,1505,1560,1590,1635,1655,1683,1665,1718,1745,1738,1788,1821,1826,1859,1872,1888,1891,1889,1881,1895,1884,1889,1890,1901,1906,1916,1951,1907,1925,1920,1921,1925,1941,1947,1931,1958,1974,1967,1947,2018]
[null,"Le Christ mort - Lamentation","Noli Me Tangere","Vertumne - Rodolphe II","Charles 1er à la Chasse","Moïse sauvé des eaux ","Le Souffleur à la Lampe","La Femme à la balance","Pierrot","Le Repos des Nymphes","La Fille de cuisine","Master Hare","Matin","Pharham Mill","Le Baiser","Souvenir de Coubron","Fille avec deux Chatons","Eté - Fille  songeuse","Portrait de Col. William F.","La Leçon de piano","Music-Hall","Matinée de juin à Saint-Mammès","Pierre et Jean","Branche de marronnier en fleurs","Les filles sur le Pont","A Waterloo","Terrasse de restaurant sur l’Havel","Annette","Pinède à Cassis","Paysage à Marcillac","Dampfschiff auf stürmischer See","Composition en rouge, jaune, bleu et noir","Jaune-rouge-bleu ","Les Bords du Rhône","Le Surréaliste","La  Muse","Le Cantique des Cantiques IV","Ontogénèse","Marilyn Monroe","Le Penseur","She Walks in Beauty"]
[null,"Staatliche Museen zu Berlin","Musée du Louvre, Paris","Skoklosters Slott, Stockholm","Musée du Louvre - Paris","National Gallery, Londres","Musée des Beaux-Arts, Dijon"," National Gallery of Art, Washington","Musée du Louvre, Paris","musée Cognacq-Jay, Paris","National Gallery, Washington","Musée du Louvre ","Landesmuseum, Hannover","Center for British Art, Yale","Pinacothèque, Brera","Musée des beaux-arts, Budapest","Kunstmuseum, Bern","Collection privée","Buffalo Bill Center, Cody","Musée Marmottan Mnet","L'Ermitage, Saint-Pétersbourg","Musée d'art Bridgestone, Tokyo","Musée d'Orsay","Collection Bührle, Kunsthaus, Zurich","Galerie nationale, Oslo","Collection privée","Nationalgalerie, Berlin","Kunsthaus,, Zürich","Musée Cantini, Marseille","Collection privée","Collection privée Berne","Kunstmuseum Den Haag","Musée National d'Art Moderne. Paris","Collection privée","Peggy Guggenheim, Venise","Collection privée","Musée national Marc Chagall, Nice","MuMa, LeHavre","MoMa, New York","Collection privée","Collection privée"]
[null,"Renaissance","Maniérisme","Maniérisme","Baroque","Baroque","Baroque","Baroque","Rococo","Rococo","Baroque","Néo-classicisme anglais","Romantisme","Romantisme","Art académique","Romantisme","Réalisme","Réalisme","Réalisme","Impressionnisme ","Impressionnisme ","Impressionnisme","Réalisme","Postimpressionnisme","Expressionnisme","Kitsch","Impressionnisme","Expressionnisme","Fauvisme","Art nouveau","Marine","Art abstrait","Art abstrait","Postimpressionnisme","Surréalisme","Surréalisme","Expressionnisme","Art brut","Pop art","Art moderne","Kitsch"]
[null,"   ","   ","   ","   ","   ","Classicisme","   ","   ","   ","   ","   ","   ","   ","Romantisme","   ","   ","   ","   ","   ","   ","   ","   ","Symbolisme","Symbolisme","   ","   ","Surréalisme","Cubisme","   ","   ","   ","Art moderne","   ","   ","Art moderne","Symbolisme","   ","   ","   ","   "]
[null,null,null,null,null,null,null,null,null,null,null,null,"   ",null,null,null,null,null,null,null,null,null,null,null,null,null,null,null,null,null,null,null,null,null,null,null,null,null,null,"   "]
[null,null,null,null,null,null,"Naturalisme",null,null,null,"Naturalisme",null,null,null,null,null,null,null,null,null,"Classique",null,null,null,null,null,null,null,null,null,null,null,"postimpressionnisme"]
[null,1,2,3,4,5,7,8,9,null,null,10,11,12,null,13,14,null,15,null,null,null,null,null,null,null,null,22,null,23,24,25,26,27,28,29,30,31,32,null,34]
[null,"Liste alphabétique","Pour aller au peintre : cliquer sur le no à gauche du peintre, puis sur son nom - Retour  à la liste avec Ctrl+l"]
[16,"ANKER  Albert ","l'Examen scolaire","Le secrétaire de Commune","Fille avec deux Chatons"]
[3,"ARCIMBOLDO  Giuseppe ","L'Automne","The Vegetable Gardener","Vertumne - Rodolphe II"]
[33,"AUBERJONOIS  René ","La minoterie, Lavaux","Les Hommes du Port","Les Bords du Rhône"]
[18,"BONHEUR  Rosa ","Biches et cerf au repos","Portrait de lion","Portrait de Col. William F."]
[9,"BOUCHER  François ","Renaud et Armide","Léda et le Cygne","Le Repos des Nymphes"]
[5,"BOURDON  Sébastien ","Les Mendiants","L'Osteria au fumeur de pipe","Moïse sauvé des eaux "]
[34,"BRAUNER  Victor ","L’homme dans un intérieur","Antithèse","Le Surréaliste"]
[17,"BRETON  Jules ","Deux vendangeuses","Les Faucheurs","Eté - Fille  songeuse"]
[2,"BRONZINO  Agnolo","Pygmalion et Galatée","Allégorie du triomphe de Vénus","Noli Me Tangere"]
[22,"BURNAND  Eugène ","La ferme suisse","Taureau dans les Alpes","Pierre et Jean"]
[19,"CAILLEBOTTE  Gustave ","Les Raboteurs de parquet","Rue de Paris, temps de pluis","La Leçon de piano"]
[1,"CARPACCIO  Vittore ","Le Lion de Sant-Marc","Chasse sur la lagune","Le Christ mort - Lamentation"]
[36,"CHAGALL  Marc ","Le Violoniste Bleu","La Création de l'homme","Le Cantique des Cantiques IV"]
[10,"CHARDIN  Jean-Siméon ","La Blanchisseuse","Le Château de cartes","La Fille de cuisine"]
[13,"CONSTABLE  John ","Lee Cheval blanc","La Charrette de foin","Pharham Mill"]
[25,"COOLIDGE  Cassius-Marcellus ","Poker Game","A Friend in Need","A Waterloo"]
[15,"COROT  Camille","L'Étang de Ville d'Avray","Souvenir de Mortefontaine","Souvenir de Coubron"]
[6,"DE LA TOUR  Georges ","Saint Jacques","Les Jouers de dés","Le Souffleur à la Lampe"]
[28,"DERAIN  André ","Bateaux dans le port de Collioure","La Danse","Pinède à Cassis"]
[37,"DUBUFFET  Jean ","La Pointe au pitre","Le Précepteur","Ontogénèse"]
[39,"ERNI  Hans ","Olympic series, tennis","Chevaux II","Le Penseur",null,null,null,null,null,null,null,null,null,null,null,null,null,null,null,null,null,null,null,null,null,"   "]
[20,"FORAIN  Jean-Louis ","La funambule","Le pêcheur","Music-Hall"]
[12,"FRIEDRICH  Caspar-David ","Le Voyageur et une mer de nuages","Falaises de craie à Rügen","Matin"]
[27,"GIACOMETTI  Alberto ","Pente ensoleillée avec chèvres","La Nuit","Annette",null,null,null,null,null,null,null,null,null,null,null,null,null,null,null,null,null,null,null,null,null,null,null,null,null,null,null,null,null,null,null,"   ",null,"   "]
[14,"HAYEZ  Francesco ","Ruth","Samson","Le Baiser"]
[32,"KANDINSKY  Vassily ","Carrés et cercles concentriques","Petits Mondes","Jaune-rouge-bleu "]
[26,"LIEBERMANN  Max ","Garçons se baignant","La promenade aux perroquets","Terrasse de restaurant sur l’Havel"]
[31,"MONDRIAN  Piet ","Arbre rouge","Tableau no 1","Composition en rouge, jaune, bleu et noir"]
[30,"MULLER-GOSSEN  Franz ","Fuldrigger","Voilier","Dampfschiff auf stürmischer See"]
[24,"MUNCH  Edvard ","Mélancolie","Le Vampire","Les filles sur le Pont"]
[35,"RAY (RADNITZKY)  Man ","Le Rébus","A l'Observatoire - Les Amoureux","La  Muse"]
[11,"REYNOLDS  Joshua ","Les Sœurs Montgomery","Lady Caroline Howard","Master Hare"]
[21,"SISLEY  Alfred ","Petits Prés au printemps, By","Les Bords du Loing","Matinée de juin à Saint-Mammès"]
[29,"VALLOTTON  Félix ","Trois femmes dans l'eau","Premiers rayons","Paysage à Marcillac"]
[4,"VAN DYCK  Antoine ","Silène ivre","Le Couronnement d'Epines","Charles 1er à la Chasse"]
[23,"VAN GOGH  Vincent ","Les Tournesols","Iris","Branche de marronnier en fleurs"]
[7,"VERMEER  Johannes ","La Laitière","Femme lisant une lettre","La Femme à la balance"]
[40,"VOLEGOV  Vladimir ","Sailing Vessel","New Flowers","She Walks in Beauty"]
[38,"WARHOL  Andy ","Boîtes de soupe Campbell's","Fleurs","Marilyn Monroe"]
[8,"WATTEAU  Antoine ","Le Dénicheur de moineaux","La Gamme d'Amour","Pierrot"]
[]
[]
[]
[]
[]
[]
[]
[]
[]
[]
[]
["Classement par date",null,null,null,"Mouvements*","Premier mouvement","Second mouvement"]
[1490,"CARPACCIO","Chasse sur la lagune"]
[1505,"CARPACCIO","Le Christ mort - Lamentation",null,{"$f":"Data!B3","v":"Vittore Carpaccio"},{"$f":"Data!L3","v":"Renaissance"},{"$f":"Data!M3","v":"   "}]
[1516,"CARPACCIO","Le Lion de Sant-Marc",null,{"$f":"Data!B4","v":"Agnolo Bronzino"},{"$f":"Data!L4","v":"Maniérisme"},{"$f":"Data!M4","v":"   "}]
[1530,"BRONZINO","Pygmalion et Galatée",null,{"$f":"Data!B5","v":"Giuseppe Arcimboldo"},{"$f":"Data!L5","v":"Maniérisme"},{"$f":"Data!M5","v":"   "}]
[1540,"BRONZINO","Allégorie du triomphe de Vénus",null,{"$f":"Data!B6","v":"Antoine van Dyck"},{"$f":"Data!L6","v":"Baroque"},{"$f":"Data!M6","v":"   "}]
[1560,"BRONZINO","Noli Me Tangere",null,{"$f":"Data!B7","v":"Sébastien Bourdon"},{"$f":"Data!L7","v":"Baroque"},{"$f":"Data!M7","v":"   "}]
[1573,"ARCIMBOLDO","L'Automne",null,{"$f":"Data!B8","v":"Georges de La Tour"},{"$f":"Data!L8","v":"Baroque"},{"$f":"Data!M8","v":"Classicisme"}]
[1588,"ARCIMBOLDO","The Vegetable Gardener",null,{"$f":"Data!B9","v":"Johannes Vermeer"},{"$f":"Data!L9","v":"Baroque"},{"$f":"Data!M9","v":"   "}]
[1590,"ARCIMBOLDO","Vertumne - Rodolphe II",null,{"$f":"Data!B10","v":"Antoine Watteau"},{"$f":"Data!L10","v":"Rococo"},{"$f":"Data!M10","v":"   "}]
[1617,"VAN DYCK","Silène ivre",null,{"$f":"Data!B11","v":"François Boucher"},{"$f":"Data!L11","v":"Rococo"},{"$f":"Data!M11","v":"   "}]
[1618,"VAN DYCK","Le Couronnement d'Epines",null,{"$f":"Data!B12","v":"Jean-Siméon Chardin"},{"$f":"Data!L12","v":"Baroque"},{"$f":"Data!M12","v":"   "}]
[1635,"BOURDON","Les Mendiants",null,{"$f":"Data!B13","v":"Joshua Reynolds"},{"$f":"Data!L13","v":"Néo-classicisme anglais"},{"$f":"Data!M13","v":"   "}]
[1635,"VAN DYCK","Charles 1er à la Chasse",null,{"$f":"Data!B14","v":"Caspar-David Friedrich"},{"$f":"Data!L14","v":"Romantisme"},{"$f":"Data!M14","v":"   "}]
[1638,"BOURDON","L'Osteria au fumeur de pipe",null,{"$f":"Data!B15","v":"John Constable"},{"$f":"Data!L15","v":"Romantisme"},{"$f":"Data!M15","v":"   "}]
[1640,"DE LA TOUR","Saint Jacques",null,{"$f":"Data!B16","v":"Francesco Hayez"},{"$f":"Data!L16","v":"Art académique"},{"$f":"Data!M16","v":"Romantisme"}]
[1650,"DE LA TOUR","Les Jouers de dés",null,{"$f":"Data!B17","v":"Camille Corot"},{"$f":"Data!L17","v":"Romantisme"},{"$f":"Data!M17","v":"   "}]
[1655,"BOURDON","Moïse sauvé des eaux ",null,{"$f":"Data!B18","v":"Albert Anker"},{"$f":"Data!L18","v":"Réalisme"},{"$f":"Data!M18","v":"   "}]
[1658,"VERMEER","La Laitière",null,{"$f":"Data!B19","v":"Jules Breton"},{"$f":"Data!L19","v":"Réalisme"},{"$f":"Data!M19","v":"   "}]
[1662,"VERMEER","Femme lisant une lettre",null,{"$f":"Data!B20","v":"Rosa Bonheur"},{"$f":"Data!L20","v":"Réalisme"},{"$f":"Data!M20","v":"   "}]
[1665,"VERMEER","La Femme à la balance",null,{"$f":"Data!B21","v":"Gustave Caillebotte"},{"$f":"Data!L21","v":"Impressionnisme "},{"$f":"Data!M21","v":"   "}]
[1683,"DE LA TOUR","Le Souffleur à la Lampe",null,{"$f":"Data!B22","v":"Jean-Louis Forain"},{"$f":"Data!L22","v":"Impressionnisme "},{"$f":"Data!M22","v":"   "}]
[1710,"WATTEAU","Le Dénicheur de moineaux",null,{"$f":"Data!B23","v":"Alfred Sisley"},{"$f":"Data!L23","v":"Impressionnisme"},{"$f":"Data!M23","v":"   "}]
[1717,"WATTEAU","La Gamme d'Amour",null,{"$f":"Data!B24","v":"Eugène Burnand"},{"$f":"Data!L24","v":"Réalisme"},{"$f":"Data!M24","v":"   "}]
[1718,"WATTEAU","Pierrot",null,{"$f":"Data!B25","v":"Vincent Van Gogh"},{"$f":"Data!L25","v":"Postimpressionnisme"},{"$f":"Data!M25","v":"Symbolisme"}]
[1734,"BOUCHER","Renaud et Armide",null,{"$f":"Data!B26","v":"Edvard Munch"},{"$f":"Data!L26","v":"Expressionnisme"},{"$f":"Data!M26","v":"Symbolisme"}]
[1735,"CHARDIN","La Blanchisseuse",null,{"$f":"Data!B27","v":"Cassius-Marcellus Coolidge"},{"$f":"Data!L27","v":"Kitsch"},{"$f":"Data!M27","v":"   "}]
[1736,"CHARDIN","Le Château de cartes",null,{"$f":"Data!B28","v":"Max Liebermann"},{"$f":"Data!L28","v":"Impressionnisme"},{"$f":"Data!M28","v":"   "}]
[1738,"CHARDIN","La Fille de cuisine",null,{"$f":"Data!B29","v":"Alberto Giacometti"},{"$f":"Data!L29","v":"Expressionnisme"},{"$f":"Data!M29","v":"Surréalisme"}]
[1740,"BOUCHER","Léda et le Cygne",null,{"$f":"Data!B30","v":"André Derain"},{"$f":"Data!L30","v":"Fauvisme"},{"$f":"Data!M30","v":"Cubisme"}]
[1745,"BOUCHER","Le Repos des Nymphes",null,{"$f":"Data!B31","v":"Félix Vallotton"},{"$f":"Data!L31","v":"Art nouveau"},{"$f":"Data!M31","v":"   "}]
[1773,"REYNOLDS","Les Sœurs Montgomery",null,{"$f":"Data!B32","v":"Franz Muller-Gossen"},{"$f":"Data!L32","v":"Marine"},{"$f":"Data!M32","v":"   "}]
[1778,"REYNOLDS","Lady Caroline Howard",null,{"$f":"Data!B33","v":"Piet Mondrian"},{"$f":"Data!L33","v":"Art abstrait"},{"$f":"Data!M33","v":"   "}]
[1788,"REYNOLDS","Master Hare",null,{"$f":"Data!B34","v":"Vassily Kandinsky"},{"$f":"Data!L34","v":"Art abstrait"},{"$f":"Data!M34","v":"Art moderne"}]
[1818,"FRIEDRICH","Le Voyageur et une mer de nuages",null,{"$f":"Data!B35","v":"René Auberjonois"},{"$f":"Data!L35","v":"Postimpressionnisme"},{"$f":"Data!M35","v":"   "}]
[1818,"FRIEDRICH","Falaises de craie à Rügen",null,{"$f":"Data!B36","v":"Victor Brauner"},{"$f":"Data!L36","v":"Surréalisme"},{"$f":"Data!M36","v":"   "}]
[1819,"CONSTABLE","Lee Cheval blanc",null,{"$f":"Data!B37","v":"Man Ray (Radnitzky)"},{"$f":"Data!L37","v":"Surréalisme"},{"$f":"Data!M37","v":"Art moderne"}]
[1821,"CONSTABLE","La Charrette de foin",null,{"$f":"Data!B38","v":"Marc Chagall"},{"$f":"Data!L38","v":"Expressionnisme"},{"$f":"Data!M38","v":"Symbolisme"}]
[1821,"FRIEDRICH","Matin",null,{"$f":"Data!B39","v":"Jean Dubuffet"},{"$f":"Data!L39","v":"Art brut"},{"$f":"Data!M39","v":"   "}]
[1826,"CONSTABLE","Pharham Mill",null,{"$f":"Data!B40","v":"Andy Warhol"},{"$f":"Data!L40","v":"Pop art"},{"$f":"Data!M40","v":"   "}]
[1835,"HAYEZ","Ruth",null,{"$f":"Data!B41","v":"Hans Erni"},{"$f":"Data!L41","v":"Art moderne"},{"$f":"Data!M41","v":"   "}]
[1842,"HAYEZ","Samson",null,{"$f":"Data!B42","v":"Vladimir Volegov"},{"$f":"Data!L42","v":"Kitsch"},{"$f":"Data!M42","v":"   "}]
[1859,"HAYEZ","Le Baiser"]
[1861,"COROT","L'Étang de Ville d'Avray",null,"*admis comme réponse dans le QUIZ"]
[1862,"ANKER","l'Examen scolaire"]
[1862,"BRETON","Deux vendangeuses"]
[1862,"ANKER","Le secrétaire de Commune"]
[1863,"BRETON","Les Faucheurs"]
[1864,"COROT","Souvenir de Mortefontaine"]
[1867,"BONHEUR","Biches et cerf au repos"]
[1872,"COROT","Souvenir de Coubron"]
[1875,"CAILLEBOTTE","Les Raboteurs de parquet"]
[1877,"CAILLEBOTTE","Rue de Paris, temps de pluis"]
[1879,"BONHEUR","Portrait de lion"]
[1880,"FORAIN","La funambule"]
[1881,"SISLEY","Petits Prés au printemps, By"]
[1881,"CAILLEBOTTE","La Leçon de piano"]
[1883,"BURNAND","La ferme suisse"]
[1883,"SISLEY","Les Bords du Loing"]
[1884,"FORAIN","Le pêcheur"]
[1884,"BURNAND","Taureau dans les Alpes"]
[1884,"SISLEY","Matinée de juin à Saint-Mammès"]
[1888,"ANKER","Fille avec deux Chatons"]
[1889,"VAN GOGH","Les Tournesols"]
[1889,"BONHEUR","Portrait de Col. William F."]
[1889,"BURNAND","Pierre et Jean"]
[1890,"VAN GOGH","Iris"]
[1890,"VAN GOGH","Branche de marronnier en fleurs"]
[1891,"BRETON","Eté - Fille  songeuse"]
[1892,"MUNCH","Mélancolie"]
[1893,"MUNCH","Le Vampire"]
[1894,"COOLIDGE","Poker Game"]
[1895,"FORAIN","Music-Hall"]
[1898,"LIEBERMANN","Garçons se baignant"]
[1900,"GIACOMETTI","Pente ensoleillée avec chèvres"]
[1901,"MUNCH","Les filles sur le Pont"]
[1902,"LIEBERMANN","La promenade aux perroquets"]
[1903,"COOLIDGE","A Friend in Need"]
[1903,"GIACOMETTI","La Nuit"]
[1905,"DERAIN","Bateaux dans le port de Collioure"]
[1906,"DERAIN","La Danse"]
[1906,"COOLIDGE","A Waterloo"]
[1907,"VALLOTTON","Trois femmes dans l'eau"]
[1907,"DERAIN","Pinède à Cassis"]
[1909,"MULLER-GOSSEN","Fuldrigger"]
[1913,"KANDINSKY","Carrés et cercles concentriques"]
[1913,"MULLER-GOSSEN","Voilier"]
[1913,"MONDRIAN","Composition en bleu, gris et rose"]
[1915,"RAY (RADNITZKY)","A l'Observatoire - Les Amoureux"]
[1916,"LIEBERMANN","Terrasse de restaurant sur l’Havel"]
[1920,"AUBERJONOIS","La minoterie, Lavaux"]
[1920,"MULLER-GOSSEN","Dampfschiff auf stürmischer See"]
[1921,"VALLOTTON","Premiers rayons"]
[1921,"MONDRIAN","Tableau no 1"]
[1921,"MONDRIAN","Composition en rouge, jaune, bleu et noir"]
[1922,"KANDINSKY","Petits Mondes"]
[1923,"AUBERJONOIS","Les Hommes du Port"]
[1925,"VALLOTTON","Paysage à Marcillac"]
[1925,"KANDINSKY","Jaune-rouge-bleu "]
[1931,"RAY (RADNITZKY)","La  Muse"]
[1937,"BRAUNER","L’homme dans un intérieur"]
[1937,"BRAUNER","Antithèse"]
[1938,"RAY (RADNITZKY)","Le Rébus"]
[1941,"AUBERJONOIS","Les Bords du Rhône"]
[1947,"CHAGALL","Le Violoniste Bleu"]
[1947,"BRAUNER","Le Surréaliste"]
[1947,"ERNI","Le Penseur"]
[1951,"GIACOMETTI","Annette"]
[1952,"ERNI","Chevaux II"]
[1956,"DUBUFFET","La Pointe au pitre"]
[1956,"CHAGALL","La Création de l'homme"]
[1958,"CHAGALL","Le Cantique des Cantiques IV"]
[1962,"WARHOL","Boîtes de soupe Campbell's"]
[1964,"WARHOL","Fleurs"]
[1967,"WARHOL","Marilyn Monroe"]
[1972,"DUBUFFET","Le Précepteur"]
[1974,"DUBUFFET","Ontogénèse"]
[1983,"ERNI","Olympic series, tennis"]
[2009,"VOLEGOV","Sailing Vessel"]
[2016,"VOLEGOV","New Flowers"]
[2018,"VOLEGOV","She Walks in Beauty"]

{"sheet":"Diapo","index":2,"n_rows":42,"n_cols":6,"rows_kept":42,"cut":false,"hidden":false,"merged":[]}
[210,{"$f":" IF(E4=44,\"\",\"<----            \"&VLOOKUP(E4,chrono,E9)&\" cm            ---->\")","v":"<----            368 cm            ---->"}]
[{"$f":"VLOOKUP(E4,chrono,2)","v":"Vittore Carpaccio"},null,{"$f":"VLOOKUP(E4,chrono,E8+1)&\"             \"&VLOOKUP(E4,chrono,E8)","v":"Le Lion de Sant-Marc             1516"}]
[null,{"$f":"IF(E4=0,\"\",VLOOKUP(E4,chrono,E8+2))","v":"Palais des Doges - Venise"},null,null,null,1]
[null,{"$f":"IF(E11=TRUE,D12,\"\")","v":"Renaissance"},null,"menu :",1,2]
[null,null,null,null,null,3]
[null,null,null,"Série : ",1,4]
[null,null,null,"décal V",{"$f":"IF(E6=1,0,IF(E6=2,7,14))","v":0},5]
[null,null,null,"decalo",{"$f":"IF(E6=1,3,IF(E6=2,6,9))","v":3},6]
[null,null,null,"decalarg",{"$f":"IF(E6=1,17,IF(E6=2,19,21))","v":17},7]
[null,null,null,null,true,8]
[null,null,null,null,true,9]
[null,null,null,{"$f":"IF(VLOOKUP(E4,chrono,13)=\"   \",VLOOKUP(E4,chrono,12),VLOOKUP(E4,chrono,12)&\"    -    \"&VLOOKUP(E4,chrono,13))","v":"Renaissance"},null,10]
[null,null,null,null,null,11]
[null,null,null,null,null,12]
[null,null,null,null,null,13]
[null,null,null,null,null,14]
[null,null,null,null,null,15]
[null,null,null,null,null,16]
[null,null,null,null,null,17]
[null,null,null,null,null,18]
[null,null,null,null,null,19]
[null,null,null,null,null,20]
[null,null,null,null,null,21]
[null,null,null,null,null,22]
[null,null,null,null,null,23]
[null,null,null,null,null,24]
[null,null,null,null,null,25]
[null,null,null,null,null,26]
[null,null,null,null,null,27]
[null,null,null,null,null,28]
[null,null,null,null,null,29]
[null,null,null,null,null,30]
[null,null,null,null,null,31]
[null,null,null,null,null,32]
[null,null,null,null,null,33]
[null,null,null,null,null,34]
[null,null,null,null,null,35]
[null,null,null,null,null,36]
[null,null,null,null,null,37]
[null,null,null,null,null,38]
[null,null,null,null,null,39]
[null,null,null,null,null,40]

{"sheet":"Mouvements","index":3,"n_rows":68,"n_cols":35,"rows_kept":68,"cut":false,"hidden":false,"merged":[[0,34,2,34],[0,20,2,20],[0,30,2,30],[0,9,2,9],[0,25,2,25],[0,27,2,27],[0,22,2,22],[0,29,2,29],[0,23,2,23],[0,24,2,24],[0,26,2,26],[0,28,2,28],[0,17,2,17],[0,18,2,18],[0,19,2,19],[0,21,2,21],[62,1,62,4],[61,1,61,4],[50,1,50,4],[51,1,51,4],[53,1,53,4],[54,1,54,4],[55,1,55,4],[52,1,52,4],[47,1,47,4],[0,15,2,15],[0,16,2,16],[0,10,2,10],[0,11,2,11],[0,12,2,12],[48,1,48,4],[49,1,49,4],[67,1,67,4],[0,13,2,13],[0,14,2,14],[56,1,56,4],[57,1,57,4],[58,1,58,4],[64,1,64,4],[65,1,65,4],[63,1,63,4],[59,1,59,4],[60,1,60,4],[66,1,66,4],[0,0,0,2],[26,5,30,5]]}
["   Mouvements en peinture",null,null,null,null,null,null,null,null,"Pré-Renaissance","Renaissance","Maniérisme","Baroque","Rococo","Néo-classisime","Classicisme","Romantisme","Réalisme","Impressionnisme","Postimpressionnisme","Marine","Symbolisme","Fauvisme","Expressionnisme","Art académique","Surréalisme","Kitch","Art nouveau","Art brut","Art abstrait","Art moderne",null,null,null,"Pop Art"]
[]
[]
[null,null,null,null,null,null,null,null,{"$f":"Data!Z3","v":"CARPACCIO  Vittore "},null,"X",null,null,null,null,null,null,null,null,null,null,null,null,null,null,null,null,null,null,null,null,"Pré-Renaissance","   ","GIOTTO  Bondone "]
[null,null,null,null,null,null,null,null,{"$f":"Data!Z4","v":"BRONZINO  Agnolo "},null,null,"X",null,null,null,null,null,null,null,null,null,null,null,null,null,null,null,null,null,null,null,"Renaissance","   ","BELLINI  Giovanni "]
[null,null,null,null,null,null,null,null,{"$f":"Data!Z5","v":"ARCIMBOLDO  Giuseppe "},null,null,"X",null,null,null,null,null,null,null,null,null,null,null,null,null,null,null,null,null,null,null,"Renaissance","   ","BOSCH  Jérôme "]
[1400,"Fin de la guerre de 100 ans","Gothique",null,null,null,null,null,{"$f":"Data!Z6","v":"VAN DYCK  Antoine "},null,null,null,"X",null,null,null,null,null,null,null,null,null,null,null,null,null,null,null,null,null,null,"Maniérisme","Renaissance","TITIEN  Le "]
[1425,null,null,"Renaissance",null,null,null,null,{"$f":"Data!Z7","v":"BOURDON  Sébastien "},null,null,null,"X",null,null,null,null,null,null,null,null,null,null,null,null,null,null,null,null,null,null,"Renaissance","   ","BRUEGHEL  Pieter "]
[1450,null,null,null,null,null,null,null,{"$f":"Data!Z8","v":"DE LA TOUR  Georges "},null,null,null,"X",null,null,"X",null,null,null,null,null,null,null,null,null,null,null,null,null,null,null,"Maniérisme","Renaissance","GRECO  Le "]
[1475,"1492 Découverte de l'Amérique",null,null,null,null,null,null,{"$f":"Data!Z9","v":"VERMEER  Johannes "},null,null,null,"X",null,null,null,null,null,null,null,null,null,null,null,null,null,null,null,null,null,null,"Renaissance","Maniérisme","TINTORET  Dominique "]
[1500,null,null,null,null,null,null,null,{"$f":"Data!Z10","v":"WATTEAU  Antoine "},null,null,null,"X",null,null,null,null,null,null,null,null,null,null,null,null,null,null,null,null,null,null,"Baroque","   ","CARAVAGE  Le "]
[1525,"1515-1547 François 1er","Maniérisme",null,null,null,null,null,{"$f":"Data!Z11","v":"BOUCHER  François "},null,null,null,null,"X",null,null,null,null,null,null,null,null,null,null,null,null,null,null,null,null,null,"Baroque","   ","RUBENS  Pierre-Paul "]
[1550,null,null,null,null,null,null,null,{"$f":"Data!Z12","v":"CHARDIN  Jean-Siméon "},null,null,null,"X",null,null,null,null,null,null,null,null,null,null,null,null,null,null,null,null,null,null,"Baroque","   ","DE_LA_TOUR  Georges "]
[1575,null,null,null,null,null,null,null,{"$f":"Data!Z13","v":"REYNOLDS  Joshua "},null,null,null,null,"X",null,null,null,null,null,null,null,null,null,null,null,null,null,null,null,null,null,"Rococo","   ","BOUCHER  François "]
[1600,"1589-1610 Henri IV","Baroque",null,null,null,null,null,{"$f":"Data!Z14","v":"FRIEDRICH  Caspar-David "},null,null,null,null,null,"X",null,null,null,null,null,null,null,null,null,null,null,null,null,null,null,null,"Rococo","Romantisme","GAINSBOROUGH  Thomas "]
[1625,null,null,null,null,null,null,null,{"$f":"Data!Z15","v":"CONSTABLE  John "},null,null,null,null,null,null,null,"X",null,null,null,null,null,null,null,null,null,null,null,null,null,null,"Romantisme","Rococo","GOYA  Francisco "]
[1650,null,null,null,null,null,null,null,{"$f":"Data!Z16","v":"HAYEZ  Francesco "},null,null,null,null,null,null,null,"X",null,null,null,null,null,null,null,null,null,null,null,null,null,null,"Néo-classicisme","   ","INGRES  Dominique "]
[1675,"1643 - 1715 Louis XIV",null,null,null,null,null,null,{"$f":"Data!Z17","v":"COROT  Camille "},null,null,null,null,null,null,null,"X",null,null,null,null,null,null,null,"X",null,null,null,null,null,null,"Romantisme","   ","GÉRICAULT  Théodore "]
[1700,null,null,"Classicisme",null,null,null,null,{"$f":"Data!Z18","v":"ANKER  Albert "},null,null,null,null,null,null,null,"X",null,null,null,null,null,null,null,null,null,null,null,null,null,null,"Romantisme","   ","FRIEDRICH  Caspar-David "]
[1725,null,null,null,"Rococo",null,null,null,{"$f":"Data!Z19","v":"BRETON  Jules "},null,null,null,null,null,null,null,null,"X",null,null,null,null,null,null,null,null,null,null,null,null,null,"Réalisme","Romantisme","COROT  Jean-Baptiste "]
[1750,null,"Préromantisme",null,null,null,null,null,{"$f":"Data!Z20","v":"BONHEUR  Rosa "},null,null,null,null,null,null,null,null,null,"X",null,null,null,null,null,null,null,null,null,null,null,null,"Réalisme","Impressionnisme","DAUMIER  Honoré "]
[1775,null,"Romantisme","Néo-classicisme",null,null,null,null,{"$f":"Data!Z21","v":"CAILLEBOTTE  Gustave "},null,null,null,null,null,null,null,null,"X",null,null,null,null,null,null,null,null,null,null,null,null,null,"Réalisme","   ","MILLET  Jean-François "]
[1800,null,null,null,null,null,null,null,{"$f":"Data!Z22","v":"FORAIN  Jean-Louis "},null,null,null,null,null,null,null,null,null,"X",null,null,null,null,null,null,null,null,null,null,null,null,"Impressionnisme","   ","MORISOT  Berthe "]
[1825,"1839 Invention de la photo",null,null,null,null,null,null,{"$f":"Data!Z23","v":"SISLEY  Alfred "},null,null,null,null,null,null,null,null,null,"X",null,null,null,null,null,null,null,null,null,null,null,null,"Impressionnisme","   ","ROBINSON  Theodore "]
[1850,null,null,"Réalisme",null,null,null,null,{"$f":"Data!Z24","v":"BURNAND  Eugène "},null,null,null,null,null,null,null,null,null,"X",null,null,null,null,null,null,null,null,null,null,null,null,"Pointillisme","postimpressionnisme","SEURAT  Georges "]
[1875,"1894 Eclairage électrique",null,"Impressionnisme",null,null,null,null,{"$f":"Data!Z25","v":"VAN GOGH  Vincent "},null,null,null,null,null,null,null,null,"X",null,null,null,null,null,null,null,null,null,null,null,null,null,"Art nouveau","Symbolisme  ","KLIMT  Gustav "]
[1900,null,"Symbolisme",null,"Art nouveau","Modernisme","Expressionnisme",null,{"$f":"Data!Z26","v":"MUNCH  Edvard "},null,null,null,null,null,null,null,null,null,null,"X",null,"X",null,null,null,null,null,null,null,null,null,"Expressionnisme","Symbolisme","MUNCH  Edvard "]
[1925,null,"Surréalisme","Postimpressionnisme","Art déco.",null,"Cubisme ",null,{"$f":"Data!Z27","v":"COOLIDGE  Cassius-Marcellus "},null,null,null,null,null,null,null,null,null,null,null,null,"X",null,"X",null,null,null,null,null,null,null,"Expressionnisme","Art moderne","KIRCHNER  Ernest-Ludwig "]
[1950,"1960 Début informatique",null,null,"Art brut",null,"Fauvisme",null,{"$f":"Data!Z28","v":"LIEBERMANN  Max "},null,null,null,null,null,null,null,null,null,null,null,null,null,null,null,null,null,"X",null,null,null,null,"Art nouveau","   ","VALLOTTON  Félix "]
[1975,null,null,null,"Art moderne",null,"Hyperréalisme",null,{"$f":"Data!Z29","v":"GIACOMETTI  Alberto "},null,null,null,null,null,null,null,null,null,null,null,null,null,null,null,null,"X",null,null,null,null,null,"Art abstrait","Art moderne","KANDINSKY  Vassily "]
[2000,null,null,null,"Art abstrait",null,"Pop Art",null,{"$f":"Data!Z30","v":"DERAIN  André "},null,null,null,null,null,null,null,null,null,null,null,null,null,"X",null,null,null,null,null,null,null,null,"Postimpressionnisme","   ","AUBERJONOIS  René "]
[null,null,null,null,null,null,null,null,{"$f":"Data!Z31","v":"VALLOTTON  Félix "},null,null,null,null,null,null,null,null,null,null,null,null,null,null,null,null,null,null,"X",null,null,null,"Fauvisme","postimpressionnisme","DE VLAMINCK  Maurice "]
[null,null,null,null,null,null,null,null,{"$f":"Data!Z32","v":"MULLER-GOSSEN  Franz "},null,null,null,null,null,null,null,null,null,null,null,"X",null,null,null,null,null,null,null,null,null,null,"Cubisme","   ","LÉGER  Fernand "]
[null,null,null,null,null,null,null,null,{"$f":"Data!Z33","v":"MONDRIAN  Piet "},null,null,null,null,null,null,null,null,null,null,null,null,null,null,null,null,null,null,null,null,"X",null,"Cubisme","   ","GRIS  Juan "]
[null,null,null,null,null,null,null,null,{"$f":"Data!Z34","v":"KANDINSKY  Vassily "},null,null,null,null,null,null,null,null,null,null,null,null,null,null,null,null,null,null,null,null,"X","X","Surréalisme","   ","ERNST  Max "]
[null,null,null,null,null,null,null,null,{"$f":"Data!Z35","v":"AUBERJONOIS  René "},null,null,null,null,null,null,null,null,null,null,"X",null,null,null,null,null,null,null,null,null,null,null,"Surréalisme","   ","TANGUY  Yves "]
[null,null,null,null,null,null,null,null,{"$f":"Data!Z36","v":"BRAUNER  Victor "},null,null,null,null,null,null,null,null,null,null,null,null,null,null,null,null,"X",null,null,null,null,null,"Art brut","   ","DUBUFFET  Jean "]
[null,null,null,null,null,null,null,null,{"$f":"Data!Z37","v":"RAY (RADNITZKY)  Man "},null,null,null,null,null,null,null,null,null,null,null,null,null,null,null,null,"X",null,null,null,null,null,"Art moderne","Surréalisme","SOLOMBRE  Jean "]
[null,null,null,null,null,null,null,null,{"$f":"Data!Z38","v":"CHAGALL  Marc "},null,null,null,null,null,null,null,null,null,null,null,null,"X",null,"X"]
[null,null,null,null,null,null,null,null,{"$f":"Data!Z39","v":"DUBUFFET  Jean "},null,null,null,null,null,null,null,null,null,null,null,null,null,null,null,null,null,null,null,"X",null,"X"]
[null,null,null,null,null,null,null,null,{"$f":"Data!Z40","v":"WARHOL  Andy "},null,null,null,null,null,null,null,null,null,null,null,null,null,null,null,null,null,null,null,null,null,null,null,null,null,"X"]
[null,null,null,null,null,null,null,null,{"$f":"Data!Z41","v":"ERNI  Hans "},null,null,null,null,null,null,null,null,null,null,null,null,null,null,null,null,null,null,null,null,null,"X"]
[null,null,null,null,null,null,null,null,{"$f":"Data!Z42","v":"VOLEGOV  Vladimir "},null,null,null,null,null,null,null,null,null,null,null,null,null,null,null,null,null,"X"]
[]
[null,null,null,null,null,null,null,null,"Ordre d'importance dans le mouvement :"]
["Dictionnaire des mouvements",null,null,null,null,null,null,null,"En rouge, mouvement principal, en vert deuxième mouvement"]
["http://www.histoiredelart.net/",null,null,null,null,null,null,null,"Fond blanc = admis comme réponse dans ce Quiz"]
[null,"La peinture de la Renaissance (mouvement de peinture qui s'est développé au XVIe siècle) se caractérise par toute une série de nouveautés telles que l'apparition du nu, de la notion de paysage, la perspective les effets de lumières et d'ombres notamment."]
[null,"Le maniérisme (mouvement de peinture qui s'est développé vers 1510) se trouve dans les poses à équilibre précaire, les formes allongées, un éclairage théâtral, les arrangements exagérés et les perspectives dissonantes."]
[null,"Le baroque (mouvement de peinture qui évolue entre 1600 et 1720) est l'art de la mise en scène par l’éblouissement des sens. Sur les peintures baroques, on observe l’exubérance des courbes, les jeux de regards, et les draperies, qui expriment la grandeur du pouvoir royal. "]
[null,"Le classicisme caractérise l'école de peinture française du XVIIe siècle. En réponse aux extravagances du baroque, le mouvement s'inspire des maîtres de la renaissance classique et devient un langage pictural au service de la monarchie absolue."]
[null,"Le rococo (courant de peinture qui se développe entre 1730 et 1789) met tous ses moyens au service de la joie, de la grâce et de la fantaisie, en opposition à l'art baroque.  Il disparut en 1789 au profit du néo-classicisme."]
[null,"Le néo-classicisme émerge vers 1750 dans l'Europe des Lumières et réagit aux extravagances du rococo par un retour au modèle antique et au beau idéal. Fantaisies et imagination sont abolies au profit de la sévérité, de la vertu et du patriotisme."]
[null,"Le romantisme (mouvement de peinture qui apparut à la fin du XVIIIe siècle) laisse une grande part à l’imaginaire, aux rêves, à la sensibilité et l’originalité des artistes."]
[null,"Le réalisme en peinture (courant de peinture du XIXe siècle) privilégie la représentation exacte, tels qu'ils sont, de la nature, des hommes et de la société."]
[null,"L'impressionnisme (courant de peinture du milieu du XIXe siècle) est né sous l'impulsion de jeunes artistes qui font du paysage leur thème principal et s’attachent à rendre compte de la moindre variation lumineuse grâce à la couleur."]
[null,"Les peintres du symbolisme (mouvement de peinture né en 1866) s’adressent à l’imaginaire, non au regard. Le sujet de prédilection est la femme qui incarne l’idéal de beauté dans tous les domaines."]
[null,"Le postimpressionnisme (mouvement entre 1885 et 1905) regroupe des courants artistiques qui, à partir de 1885, divergent de l'impressionnisme ou s'opposent à lui : néo-impressionnisme, synthétisme, symbolisme, nabis... Le post impressionnisme désigne donc une époque brève dans l'histoire de l'art, une vingtaine d'années, qui va voir un foisonnement d'idées et l'émergence de jeunes talents appelés à révolutionner la peinture. Cette période brouillonne, mais fertile finira par déboucher sur l'art abstrait."]
[null,"L'art nouveau (fin XIXe et début XXe siècle)  s'appuie sur l'esthétique des lignes courbes et se caractérise par l’emploi de lignes sinueuses, de courbes et de formes organiques."]
[null,"Le cubisme (mouvement de peinture qui s'est développé dans la première moitié du XXe siècle) est le fruit des peintres Pablo Picasso et Georges Braque qui ont introduit la fragmentation dans leurs oeuvres d'art."]
[null,"Le fauvisme (courant de peinture du début du XXe siècle) s’attache particulièrement au travail de la couleur. Les œuvres sont facilement reconnaissables par l’emploi sur de larges surfaces de couleurs aux teintes éclatantes."]
[null,"L’expressionnisme (mouvement de peinture qui apparut au début du XXe siècle) est la projection d’une vision personnelle qui tend à déformer la réalité pour inspirer au spectateur une réaction émotionnelle."]
[null,"Les caractéristiques du surréalisme (mouvement de la première moitié du XXe siècle) sont  principalement la surprise et la juxtaposition inattendue qui s'explique par une expression philosophique."]
[null,"Le constructivisme est une tendance artistique apparue en Russie vers 1913. Il se concentre sur la composition géométrique rigoureuse et par conséquent non figuratif. Le caractère constructiviste repose sur le fait de créer une composition au moyen d’éléments géométriques simples."]
[null,"Le pointillisme est un mouvement artistique de la peinture et une technique picturale qui utilise de petites touches de couleur rondes ou carrées juxtaposées plutôt que des mélanges de pâtes colorées. La peinture par points était connue depuis le xvie siècle au moins."]
[null,"La notion de modernisme (courant de peinture qui s'étend de 1907 aux années 1960) recouvre un ensemble de mouvements culturels ayant animé les sociétés occidentales de la fin du XIXe siècle et du XXe siècle, dans la peinture et dans d'autres domaines artistiques."]
[null,"Le dadaïsme ou Dada est un mouvement de peinture (qui s'est développé dans les années 1910 - 1920) qui tente d’abolir le concept du beau en mettant en avant un monde vide de sens. Tout peut devenir art si l’artiste le décide, utilisant la révolte ou la dérision. "]
[null,"Art brut est le terme par lequel le peintre Jean Dubuffet désigne les productions de personnes exemptes de culture artistique. Art qui comprend à la fois l'art des fous et celui de marginaux de toutes sortes : prisonniers, reclus, mystiques, anarchistes ou révoltés."]

{"sheet":"Data","index":4,"n_rows":119,"n_cols":38,"rows_kept":119,"cut":false,"hidden":true,"merged":[[46,13,46,21],[45,23,45,25],[46,22,46,25]]}
[1,"chrono - Matrice de Musée",null,4,5,6,7,8,9,10,11,12,13,14,15,16,17,18,19,20,21,22,23,24,25,26,27,28,29,30,31,32,33,34,35,36,37,38]
[0,"   ","   ","   ","   ","   ","   ","   ","   ","   ","   ","    ","   ","Mouvement",null,1,1,1,1,1,1]
[1,{"$f":"TRANSPOSE(Musée!B3:AO6)","v":"Vittore Carpaccio"},1516,"Le Lion de Sant-Marc","Palais des Doges - Venise",{"$f":"TRANSPOSE(Musée!B11:AO13)","v":1490},"Chasse sur la lagune","Getty Museum Los Angeles",{"$f":"TRANSPOSE(Musée!B18:AO22)","v":1505},"Le Christ mort - Lamentation","Staatliche Museen zu Berlin","Renaissance","   ",{"$f":"VLOOKUP(L3,$J$49:$K$74,2)","v":21},{"$f":"IF(M3=\"   \",26,VLOOKUP(M3,$J$49:$K$74,2))","v":26},130,368,76,64,185,145,"A, B, C",{"$f":"B3","v":"Vittore Carpaccio"},{"$f":"UPPER(RIGHT(W3,LEN(W3)-SEARCH(\" \",W3,1)))","v":"CARPACCIO"},{"$f":"LEFT(W3,FIND(\" \",W3))","v":"Vittore "},{"$f":"X3&\"  \"&Y3","v":"CARPACCIO  Vittore "},{"$f":"VLOOKUP(N3,$I$49:$L$70,4)","v":"R, S, T"}]
[2,"Agnolo Bronzino",1530,"Pygmalion et Galatée","Galerie des Offices, Florence",1540,"Allégorie du triomphe de Vénus","National Gallery , Londres",1560,"Noli Me Tangere","Musée du Louvre, Paris","Maniérisme","   ",{"$f":"VLOOKUP(L4,$J$49:$K$74,2)","v":13},{"$f":"IF(M4=\"   \",26,VLOOKUP(M4,$J$49:$K$74,2))","v":26},81,63,146,116,291,195,"A, B, C",{"$f":"B4","v":"Agnolo Bronzino"},{"$f":"UPPER(RIGHT(W4,LEN(W4)-SEARCH(\" \",W4,1)))","v":"BRONZINO"},{"$f":"LEFT(W4,FIND(\" \",W4))","v":"Agnolo "},{"$f":"X4&\"  \"&Y4","v":"BRONZINO  Agnolo "},{"$f":"VLOOKUP(N4,$I$49:$L$70,4)","v":"M, N, P"}]
[3,"Giuseppe Arcimboldo",1573,"L'Automne","Musée du Louvre, Paris",1588,"The Vegetable Gardener","Museo Civico Ala Ponzone",1590,"Vertumne - Rodolphe II","Skoklosters Slott, Stockholm","Maniérisme","   ",13,26,79,64,36,24,70,58,"A, B, C","Giuseppe Arcimboldo","ARCIMBOLDO","Giuseppe ","ARCIMBOLDO  Giuseppe ","M, N, P"]
[4,"Antoine van Dyck",1617,"Silène ivre","Gemäldegalerie Alte Meister - Dresde",1618,"Le Couronnement d'Epines","Musée du Prado - Magrid",1635,"Charles 1er à la Chasse","Musée du Louvre - Paris","Baroque","   ",6,26,107,90,225,197,105,76,"S, T, W","Antoine van Dyck","VAN DYCK","Antoine ","VAN DYCK  Antoine ","A, B, C"]
[5,"Sébastien Bourdon",1635,"Les Mendiants","Musée du Louvre, Paris",1638,"L'Osteria au fumeur de pipe","Musée Fabre, Montpellier",1655,"Moïse sauvé des eaux ","National Gallery, Londres","Baroque","   ",{"$f":"VLOOKUP(L7,$J$49:$K$74,2)","v":6},{"$f":"IF(M7=\"   \",26,VLOOKUP(M7,$J$49:$K$74,2))","v":26},159,137,59,74,120,173,"A, B, C","Sébastien Bourdon","BOURDON","Sébastien ","BOURDON  Sébastien ","A, B, C"]
[6,"Georges de La Tour",1640,"Saint Jacques","Collection Privée",1650,"Les Joueurs de dés"," Preston Hall, Stockton-on-Tees",1683,"Le Souffleur à la Lampe","Musée des Beaux-Arts, Dijon","Baroque","Classicisme",6,7,132,100,92,130,61,51,"D, E, F","Georges de La Tour","DE LA TOUR","Georges ","DE LA TOUR  Georges ","A, B, C"]
[7,"Johannes Vermeer",1658,"La Laitière","Rijksmuseum, Amsterdam",1662,"Femme lisant une lettre","Galerie nationale d'Irlande, Dublin",1665,"La Femme à la balance"," National Gallery of Art, Washington","Baroque","   ",6,26,46,41,53,40,42,45,"S, T, W","Johannes Vermeer","VERMEER","Johannes ","VERMEER  Johannes ","A, B, C"]
[8,"Antoine Watteau",1710,"Le Dénicheur de moineaux","National Galleries of Scotland, Edinburgh",1717,"La Gamme d'Amour","National Gallery, Londres",1718,"Pierrot","Musée du Louvre, Paris","Rococo","   ",22,26,24,19,51,60,185,150,"S, T, W","Antoine Watteau","WATTEAU","Antoine ","WATTEAU  Antoine ","R, S, T"]
[9,"François Boucher",1734,"Renaud et Armide","Musée du Louvre, Paris",1740,"Léda et le Cygne","Nationalmuseum, Stockholm",1745,"Le Repos des Nymphes","musée Cognacq-Jay, Paris","Rococo","   ",22,26,136,171,59,72,59,74,"A, B, C","François Boucher","BOUCHER","François ","BOUCHER  François ","R, S, T"]
[10,"Jean-Siméon Chardin",1735,"La Blanchisseuse","Ermitage, Saint-Pétersbourg",1736,"Le Château de cartes","National Gallery, Washington",1738,"La Fille de cuisine","National Gallery, Washington","Baroque","   ",6,26,37,42,81,65,46,37,"A, B, C","Jean-Siméon Chardin","CHARDIN","Jean-Siméon ","CHARDIN  Jean-Siméon ","A, B, C"]
[11,"Joshua Reynolds",1773,"Les Sœurs Montgomery","Tate Gallery, Londres",1778,"Lady Caroline Howard","National Gallery of Art",1788,"Master Hare","Musée du Louvre ","Néo-classicisme anglais","   ",15,26,234,291,146,113,77,64,"P, Q, R","Joshua Reynolds","REYNOLDS","Joshua ","REYNOLDS  Joshua ","M, N, P"]
[12,"Caspar-David Friedrich",1818,"Le Voyageur et une mer de nuages","Kunsthalle, Hambourg",1818,"Falaises de craie à Rügen","Musée des Beaux-Arts, Winterthour",1821,"Matin","Landesmuseum, Hannover","Romantisme","   ",23,26,96,75,91,71,22,31,"D, E, F","Caspar-David Friedrich","FRIEDRICH","Caspar-David ","FRIEDRICH  Caspar-David ","R, S, T"]
[13,"John Constable",1819,"Le Cheval blanc","Frick Collection, New York",1821,"La Charrette de foin","National Gallery, Londres",1826,"Pharham Mill","Center for British Art, Yale","Romantisme","   ",23,26,132,188,130,185,50,60,"A, B, C","John Constable","CONSTABLE","John ","CONSTABLE  John ","R, S, T"]
[14,"Francesco Hayez",1835,"Ruth","Museum of John Paul II Collection",1842,"Samson","Gallerie des Offices, Florence",1859,"Le Baiser","Pinacothèque, Brera","Art académique","Romantisme",1,23,123,99,210,162,110,88,"G, H, I","Francesco Hayez","HAYEZ","Francesco ","HAYEZ  Francesco ","Art ?"]
[15,"Camille Corot",1861,"L'Étang de Ville d'Avray","Musée des Beaux-Arts, Strasbourg",1864,"Souvenir de Mortefontaine","Musée du Louvre, Paris",1872,"Souvenir de Coubron","Musée des beaux-arts, Budapest","Romantisme","   ",23,26,47,68,89,65,46,55,"A, B, C","Camille Corot","COROT","Camille ","COROT  Camille ","R, S, T"]
[16,"Albert Anker",1862,"l'Examen scolaire","Kunstmuseum, Bern",1862,"Le secrétaire de Commune","MCBA, Lausanne",1888,"Fille avec deux Chatons","Kunstmuseum, Bern","Réalisme","   ",20,26,103,175,64,51,66,43,"A, B, C","Albert Anker","ANKER","Albert ","ANKER  Albert ","R, S, T"]
[17,"Jules Breton",1862,"Deux vendangeuses","Joslyn Art Museum, Omaha (Nebraska)",1863,"Les Faucheurs","Musée Kelvingrove, Glasgow",1891,"Eté - Fille  songeuse","Collection privée","Réalisme","   ",20,26,59,49,75,112,75,64,"A, B, C","Jules Breton","BRETON","Jules ","BRETON  Jules ","R, S, T"]
[18,"Rosa Bonheur",1867,"Biches et cerf au repos","Institute of Arts, Detroit",1879,"Portrait de lion","Prado",1889,"Portrait de Col. William F.","Buffalo Bill Center, Cody","Réalisme","   ",20,26,101,82,95,76,47,39,"A, B, C","Rosa Bonheur","BONHEUR","Rosa ","BONHEUR  Rosa ","R, S, T"]
[19,"Gustave Caillebotte",1875,"Les Raboteurs de parquet","Musée d'Orsay",1877,"Rue de Paris, temps de pluie","Art Institure - Chicago",1881,"La Leçon de piano","Musée Marmottan Mnet","Impressionnisme ","   ",11,26,102,147,212,276,81,65,"A, B, C","Gustave Caillebotte","CAILLEBOTTE","Gustave ","CAILLEBOTTE  Gustave ","F, I,  K"]
[20,"Jean-Louis Forain",1880,"La funambule","Art Institute, Chicago",1884,"Le pêcheur"," City Art Gallery, Southampton",1895,"Music-Hall","L'Ermitage, Saint-Pétersbourg","Impressionnisme ","   ",11,26,46,38,95,100,50,60,"D, E, F","Jean-Louis Forain","FORAIN","Jean-Louis ","FORAIN  Jean-Louis ","F, I,  K"]
[21,"Alfred Sisley",1881,"Petits Prés au printemps, By","Tate  Gallery, Londres",1883,"Les Bords du Loing","Fondation Bemberg, Toulouse",1884,"Matinée de juin à Saint-Mammès","Musée d'art Bridgestone, Tokyo","Impressionnisme","   ",11,26,54,73,50,73,55,74,"S, T, W","Alfred Sisley","SISLEY","Alfred ","SISLEY  Alfred ","F, I,  K"]
[22,"Eugène Burnand",1883,"La Ferme suisse","Musées d'art et d'histoire, Genève",1884,"Taureau dans les Alpes","MCBA, Lausanne",1889,"Pierre et Jean","Musée d'Orsay","Réalisme","   ",20,26,201,286,200,270,34,82,"A, B, C","Eugène Burnand","BURNAND","Eugène ","BURNAND  Eugène ","R, S, T"]
[23,"Vincent Van Gogh",1889,"Les Tournesols","Van Gogh Museum, Amsterdam",1890,"Iris","MoMA, New York",1890,"Branche de marronnier en fleurs","Collection Bührle, Kunsthaus, Zurich","Postimpressionnisme","Symbolisme",18,25,93,73,73,92,73,92,"S, T, W","Vincent Van Gogh","VAN GOGH","Vincent ","VAN GOGH  Vincent ","M, N, P"]
[24,"Edvard Munch",1892,"Mélancolie","KODE Art Museums, Bergen ",1893,"Le Vampire","Museum of Art, Gothenburg",1901,"Les filles sur le Pont","Galerie nationale, Oslo","Expressionnisme","Symbolisme",9,25,64,96,80,100,140,126,"K, L, M","Edvard Munch","MUNCH","Edvard ","MUNCH  Edvard ","E, F, I"]
[25,"Cassius-Marcellus Coolidge",1894,"Poker Game","Collection privée",1903,"A Friend in Need","Collection privée",1906,"A Waterloo","Collection privée","Kitsch","   ",12,26,106,127,50,80,53,75,"A, B, C","Cassius-Marcellus Coolidge","COOLIDGE","Cassius-Marcellus ","COOLIDGE  Cassius-Marcellus ","M, N, P"]
[26,"Max Liebermann",1898,"Garçons se baignant","Neue Pinakothek, Munich",1902,"La promenade aux perroquets","Kunsthalle, Brême",1916,"Terrasse de restaurant sur l’Havel","Nationalgalerie, Berlin","Impressionnisme","   ",11,26,113,152,88,73,71,87,"K, L, M","Max Liebermann","LIEBERMANN","Max ","LIEBERMANN  Max ","F, I,  K"]
[27,"Alberto Giacometti",1903,"La Nuit","Kunsthaus,, Zürich",1950,"Pommes dans l'Atelier","Collection particulière",1951,"Annette","Kunsthaus,, Zürich","Expressionnisme","Surréalisme",9,24,251,110,72,54,81,65,"G, H, I","Alberto Giacometti","GIACOMETTI","Alberto ","GIACOMETTI  Alberto ","E, F, I"]
[28,"André Derain",1905,"Bateaux dans le port de Collioure"," Fondation Merzbacher,  Paris",1906,"La Danse","Collection privée",1907,"Pinède à Cassis","Musée Cantini, Marseille","Fauvisme","Cubisme",10,8,72,91,175,225,54,65,"D, E, F","André Derain","DERAIN","André ","DERAIN  André ","F, I,  K"]
[29,"Félix Vallotton",1907,"Trois femmes dans l'eau","Kunstmuseum, Bâle",1921,"Premiers rayons","Collectio n  privée",1925,"Paysage à Marcillac","Collection privée","Art nouveau","   ",5,26,130,195,81,61,92,73,"S, T, W","Félix Vallotton","VALLOTTON","Félix ","VALLOTTON  Félix ","Art ?"]
[30,"Franz Muller-Gossen",1909,"Fuldrigger","Stadtmuseum, Warleberger Hof",1913,"Voilier","Moinat Antiquités - Lausanne",1920,"Dampfschiff auf stürmischer See","Collection privée Berne","Marine","   ",14,26,110,142,38,54,46,54,"K, L, M","Franz Muller-Gossen","MULLER-GOSSEN","Franz ","MULLER-GOSSEN  Franz ","M, N, P"]
[31,"Piet Mondrian",1910,"Arbre rouge","Kunstmuseum Den Haag",1921,"Tableau  no1","Fondation Beyeler, Riehen",1921,"Composition en rouge, jaune, bleu et noir","Kunstmuseum Den Haag","Art abstrait","   ",1,26,70,99,76,66,60,60,"K, L, M","Piet Mondrian","MONDRIAN","Piet ","MONDRIAN  Piet ","Art ?"]
[32,"Vassily Kandinsky",1913,"Carrés et cercles concentriques","Stadtische Galerie, Munich",1922,"Petits Mondes","National Gallery of Denmark, Copenhagen",1925,"Jaune-rouge-bleu ","Musée National d'Art Moderne. Paris","Art abstrait","Art moderne",1,4,24,32,36,28,128,202,"K, L, M","Vassily Kandinsky","KANDINSKY","Vassily ","KANDINSKY  Vassily ","Art ?"]
[33,"René Auberjonois",1920,"La minoterie, Lavaux","MCBA, Lausanne",1923,"Les Hommes du Port","MCBA, Lausanne",1941,"Les Bords du Rhône","Collection privée","Postimpressionnisme","   ",18,26,26,32,270,190,30,27,"A, B, C","René Auberjonois","AUBERJONOIS","René ","AUBERJONOIS  René ","M, N, P"]
[34,"Victor Brauner",1937,"L’homme dans un intérieur"," The Surrealist Art Centre, London",1937,"Antithèse","Centre Pompidou, Paris",1947,"Le Surréaliste","Peggy Guggenheim, Venise","Surréalisme","   ",24,26,24,22,14,18,60,45,"A, B, C","Victor Brauner","BRAUNER","Victor ","BRAUNER  Victor ","R, S, T"]
[35,"Man Ray (Radnitzky)",1938,"Le Rébus","Centre Pompidou, Paris",1915,"A l'Observatoire - Les Amoureux","Naumann Fine Art, New York",1931,"La  Muse","Collection privée","Surréalisme","Art moderne",24,4,55,46,36,90,40,32,"P, Q, R","Man Ray (Radnitzky)","RAY (RADNITZKY)","Man ","RAY (RADNITZKY)  Man ","R, S, T"]
[36,"Marc Chagall",1947,"Le Violoniste Bleu","Collection privée",1956,"La Création de l'homme","Musée national Marc Chagall, Nice",1958,"Le Cantique des Cantiques IV","Musée national Marc Chagall, Nice","Expressionnisme","Symbolisme",9,25,82,63,299,200,145,211,"A, B, C","Marc Chagall","CHAGALL","Marc ","CHAGALL  Marc ","E, F, I"]
[37,"Jean Dubuffet",1956,"La Pointe au pitre","Stedelijk Museum, Amsterdam",1972,"Le Précepteur","MCBA, Lausanne",1974,"Ontogénèse","MuMa, LeHavre","Art brut","   ",3,26,144,113,178,100,251,316,"D, E, F","Jean Dubuffet","DUBUFFET","Jean ","DUBUFFET  Jean ","Art ?"]
[38,"Andy Warhol",1962,"Boîtes de soupe Campbell's","MoMa, New York",1964,"Fleurs","MoMa, New York",1967,"Marilyn Monroe","MoMa, New York","Pop art","   ",17,26,41,41,59,56,205,145,"S, T, W","Andy Warhol","WARHOL","Andy ","WARHOL  Andy ","M, N, P"]
[39,"Hans Erni",1983,"Olympic series, tennis","Musée Olympique, Lausanne",1952,"Chevaux II","Collection privée",1947,"Le Penseur","Collection privée","Art moderne","   ",4,26,800,600,58,75,36,30,"D, E, F","Hans Erni","ERNI","Hans ","ERNI  Hans ","Art ?"]
[40,"Vladimir Volegov",2009,"Sailing Vessel","Collection privée",2016,"New Flowers","Collection privée",2018,"She Walks in Beauty","Collection privée","Kitsch","   ",12,26,92,73,92,61,100,65,"S, T, W","Vladimir Volegov","VOLEGOV","Vladimir ","VOLEGOV  Vladimir ","M, N, P"]
[41,"     ","   ","    ","   ","   ","    ","   ",null,null,null,"   ","   ",null,null,null,null,null,null,null,null,null,"     ","    "]
[42,"   ","   ","   ","   ","   ","   ","   ","   ","   ","   ","   ","   "]
[43,null,null,null,null,null,"   ","   ",null,"    ",null,null,null,null,null,"hauteur","largeur","hauteur","largeur","hauteur","largeur"]
[44,{"$f":"\"     \"","v":"     "},{"$f":"\"     \"","v":"     "},"     ","     ","     ","     ","   ","     ","     ","     ","     ","     ","   ","   ","   ","   ","   ","   ","   ","   ","   ","\" = B3 \"","Concanétation"]
[null,"ci-dessous, copie de la colonne W",null,null,"ci-dessous, copie de la colonne Z",null,null,null,null,null,null,null,null,"Partie manuelle",null,null,null,null,null,null,null,null,"Zone automatique"]
[null,"alpha - Tableau manuel",null,"Correspondance liste Musée et liste Menu déroulant",null,null,null,null,"Liste mouv"]
[0,"   ",null,"   ","   ","   ",null,null,0,"   ",0,"Mouv","Nom",null,null,null,null,null,null,null,null,null,"Liste Musée",null,null,"Liste alpahbétique"]
[1,16,{"$f":"\"      A      \"","v":"      A      "},{"$f":"C50&E50","v":"      A      ANKER  Albert "},"ANKER  Albert ",null,null,null,1,"Art abstrait",1,"Art ?","A, B, C",null,null,null,null,null,null,null,null,1,"CARPACCIO  Vittore ",null,16,"ANKER  Albert "]
[2,3,{"$f":"\"              \"","v":"              "},{"$f":"C51&E51","v":"              ARCIMBOLDO  Giuseppe "},"ARCIMBOLDO  Giuseppe ",null,null,null,2,"Art accadémique",2,"Art ?","D, E, F",null,null,null,null,null,null,null,null,2,"BRONZINO  Agnolo",null,3,"ARCIMBOLDO  Giuseppe "]
[3,33,{"$f":"\"              \"","v":"              "},"              AUBERJONOIS  René ","AUBERJONOIS  René ",null,null,null,3,"Art brut",3,"Art ?","G, H, I",null,null,null,null,null,null,null,null,3,"ARCIMBOLDO  Giuseppe ",null,33,"AUBERJONOIS  René "]
[4,18,{"$f":"\"      B      \"","v":"      B      "},"      B      BONHEUR  Rosa ","BONHEUR  Rosa ",null,null,null,4,"Art moderne",4,"Art ?","K, L, M",null,null,null,null,null,null,null,null,4,"VAN DYCK  Antoine ",null,18,"BONHEUR  Rosa "]
[5,9,"              ","              BOUCHER  François ","BOUCHER  François ",null,null,null,5,"Art nouveau",5,"Art ?","P, Q, R",null,null,null,null,null,null,null,null,5,"BOURDON  Sébastien ",null,9,"BOUCHER  François "]
[6,5,"              ","              BOURDON  Sébastien ","BOURDON  Sébastien ",null,null,null,6,"Baroque",6,"A, B, C","S, T, W",null,null,null,null,null,null,null,null,6,"DE LA TOUR  Georges ",null,5,"BOURDON  Sébastien "]
[7,34,"              ","              BRAUNER  Victor ","BRAUNER  Victor ",null,null,null,7,"Classicisme",7,"A, B, C",null,null,null,null,null,null,null,null,null,7,"VERMEER  Johannes ",null,34,"BRAUNER  Victor "]
[8,17,"              ","              BRETON  Jules ","BRETON  Jules ",null,null,null,8,"Cubisme",8,"E, F, I",null,null,null,null,null,null,null,null,null,8,"WATTEAU  Antoine ",null,17,"BRETON  Jules "]
[9,2,"              ","              BRONZINO  Agnelo","BRONZINO  Agnelo",null,null,null,9,"Expressionnisme",9,"E, F, I",null,null,null,null,null,null,null,null,null,9,"BOUCHER  François ",null,2,"BRONZINO  Agnolo"]
[10,22,"              ","              BURNAND  Eugène ","BURNAND  Eugène ",null,null,null,10,"Fauvisme",10,"F, I,  K",null,null,null,null,null,null,null,null,null,10,"CHARDIN  Jean-Siméon ",null,22,"BURNAND  Eugène "]
[11,19,{"$f":"\"      C      \"","v":"      C      "},"      C      CAILLEBOTTE  Gustave ","CAILLEBOTTE  Gustave ",null,null,null,11,"Impressionnisme",11,"F, I,  K",null,null,null,null,null,null,null,null,null,11,"REYNOLDS  Joshua ",null,19,"CAILLEBOTTE  Gustave "]
[12,1,{"$f":"\"              \"","v":"              "},"              CARPACCIO  Vittore ","CARPACCIO  Vittore ",null,null,null,12,"Kitsch",12,"M, N, P",null,null,null,null,null,null,null,null,null,12,"FRIEDRICH  Caspar-David ",null,1,"CARPACCIO  Vittore "]
[13,36,"              ","              CHAGALL  Marc ","CHAGALL  Marc ",null,null,null,13,"Maniérisme",13,"M, N, P",null,null,null,null,null,null,null,null,null,13,"CONSTABLE  John ",null,36,"CHAGALL  Marc "]
[14,10,"              ","              CHARDIN  Jean-Siméon ","CHARDIN  Jean-Siméon ",null,null,null,14,"Marine",14,"M, N, P",null,null,null,null,null,null,null,null,null,14,"HAYEZ  Francesco ",null,10,"CHARDIN  Jean-Siméon "]
[15,13,"              ","              CONSTABLE  John ","CONSTABLE  John ",null,null,null,15,"Néo-classicisme",15,"M, N, P",null,null,null,null,null,null,null,null,null,15,"COROT  Camille",null,13,"CONSTABLE  John "]
[16,25,"              ","              COOLIDGE  Cassius-Marcellus ","COOLIDGE  Cassius-Marcellus ",null,null,null,16,"Pointillisme",16,"M, N, P",null,null,null,null,null,null,null,null,null,16,"ANKER  Albert ",null,25,"COOLIDGE  Cassius-Marcellus "]
[17,15,"              ","              COROT  Camille","COROT  Camille",null,null,null,17,"Pop Art",17,"M, N, P",null,null,null,null,null,null,null,null,null,17,"BRETON  Jules ",null,15,"COROT  Camille"]
[18,6,{"$f":"\"      D      \"","v":"      D      "},"      D      DE LA TOUR  Georges ","DE LA TOUR  Georges ",null,null,null,18,"Postimpressionnisme",18,"M, N, P",null,null,null,null,null,null,null,null,null,18,"BONHEUR  Rosa ",null,6,"DE LA TOUR  Georges "]
[19,28,{"$f":"\"              \"","v":"              "},"              DERAIN  André ","DERAIN  André ",null,null,null,19,"Pré-Renaissance",19,"R, S, T",null,null,null,null,null,null,null,null,null,19,"CAILLEBOTTE  Gustave ",null,28,"DERAIN  André "]
[20,37,"              ","              DUBUFFET  Jean ","DUBUFFET  Jean ",null,null,null,20,"Réalisme",20,"R, S, T",null,null,null,null,null,null,null,null,null,20,"FORAIN  Jean-Louis ",null,37,"DUBUFFET  Jean "]
[21,39,{"$f":"\"      E      \"","v":"      E      "},"      E      ERNI  Hans ","ERNI  Hans ",null,null,null,21,"Renaissance",21,"R, S, T",null,null,null,null,null,null,null,null,null,21,"SISLEY  Alfred ",null,39,"ERNI  Hans "]
[22,20,{"$f":"\"      F       \"","v":"      F       "},"      F       FORAIN  Jean-Louis ","FORAIN  Jean-Louis ",null,null,null,22,"Rococo",22,"R, S, T",null,null,null,null,null,null,null,null,null,22,"BURNAND  Eugène ",null,20,"FORAIN  Jean-Louis "]
[23,12,{"$f":"\"              \"","v":"              "},"              FRIEDRICH  Caspar-David ","FRIEDRICH  Caspar-David ",null,null,null,23,"Romantisme",23,"R, S, T",null,null,null,null,null,null,null,null,null,23,"VAN GOGH  Vincent ",null,12,"FRIEDRICH  Caspar-David "]
[24,27,{"$f":"\"      G      \"","v":"      G      "},"      G      GIACOMETTI  Alberto ","GIACOMETTI  Alberto ",null,null,null,24,"Surréalisme",24,"R, S, T",null,null,null,null,null,null,null,null,null,24,"MUNCH  Edvard ",null,27,"GIACOMETTI  Alberto "]
[25,14,{"$f":"\"      H      \"","v":"      H      "},"      H      HAYEZ  Francesco ","HAYEZ  Francesco ",null,null,null,25,"Symbolisme",25,null,null,null,null,null,null,null,null,null,null,25,"COOLIDGE  Cassius-Marcellus ",null,14,"HAYEZ  Francesco "]
[26,32,{"$f":"\"      K      \"","v":"      K      "},"      K      KANDINSKY  Vassily ","KANDINSKY  Vassily ",null,null,null,26,{"$f":"\"   \"","v":"   "},26,null,null,null,null,null,null,null,null,null,null,26,"LIEBERMANN  Max ",null,32,"KANDINSKY  Vassily "]
[27,26,{"$f":"\"      L       \"","v":"      L       "},"      L       LIEBERMANN  Max ","LIEBERMANN  Max ",null,null,null,null,null,null,null,null,null,null,null,null,null,null,null,null,27,"GIACOMETTI  Alberto ",null,26,"LIEBERMANN  Max "]
[28,31,{"$f":"\"      M     \"","v":"      M     "},"      M     MONDRIAN  Piet ","MONDRIAN  Piet ",null,null,null,null,null,null,null,null,null,null,null,null,null,null,null,null,28,"DERAIN  André ",null,31,"MONDRIAN  Piet "]
[29,30,"              ","              MULLER-GOSSEN  Franz ","MULLER-GOSSEN  Franz ",null,null,null,null,null,null,null,null,null,null,null,null,null,null,null,null,29,"VALLOTTON  Félix ",null,30,"MULLER-GOSSEN  Franz "]
[30,24,"              ","              MUNCH  Edvard ","MUNCH  Edvard ",null,null,null,0,"   ",0,null,null,null,null,null,null,null,null,null,null,30,"MULLER-GOSSEN  Franz ",null,24,"MUNCH  Edvard "]
[31,35,{"$f":"\"      R      \"","v":"      R      "},"      R      RAY (RADNITZKY)  Man ","RAY (RADNITZKY)  Man ",null,null,{"$f":"\"      A     \"","v":"      A     "},1,{"$f":"H80&J50","v":"      A     Art abstrait"},1,null,null,null,null,null,null,null,null,null,null,31,"MONDRIAN  Piet ",null,35,"RAY (RADNITZKY)  Man "]
[32,11,"              ","              REYNOLDS  Joshua ","REYNOLDS  Joshua ",null,null,{"$f":"\"              \"","v":"              "},2,{"$f":"H81&J51","v":"              Art accadémique"},2,null,null,null,null,null,null,null,null,null,null,32,"KANDINSKY  Vassily ",null,11,"REYNOLDS  Joshua "]
[33,21,{"$f":"\"      S      \"","v":"      S      "},"      S      SISLEY  Alfred ","SISLEY  Alfred ",null,null,"              ",3,"              Art brut",3,null,null,null,null,null,null,null,null,null,null,33,"AUBERJONOIS  René ",null,21,"SISLEY  Alfred "]
[34,29,{"$f":"\"      V      \"","v":"      V      "},"      V      VALLOTTON  Félix ","VALLOTTON  Félix ",null,null,"              ",4,"              Art moderne",4,null,null,null,null,null,null,null,null,null,null,34,"BRAUNER  Victor ",null,29,"VALLOTTON  Félix "]
[35,4,"              ","              VAN DYCK  Antoine ","VAN DYCK  Antoine ",null,null,"              ",5,"              Art nouveau",5,null,null,null,null,null,null,null,null,null,null,35,"RAY (RADNITZKY)  Man ",null,4,"VAN DYCK  Antoine "]
[36,23,"              ","              VAN GOGH  Vincent ","VAN GOGH  Vincent ",null,null,{"$f":"\"      B      \"","v":"      B      "},6,"      B      Baroque",6,null,null,null,null,null,null,null,null,null,null,36,"CHAGALL  Marc ",null,23,"VAN GOGH  Vincent "]
[37,7,"              ","              VERMEER  Johannes ","VERMEER  Johannes ",null,null,{"$f":"\"      C     \"","v":"      C     "},7,"      C     Classicisme",7,null,null,null,null,null,null,null,null,null,null,37,"DUBUFFET  Jean ",null,7,"VERMEER  Johannes "]
[38,40,"              ","              VOLEGOV  Vladimir ","VOLEGOV  Vladimir ",null,null,{"$f":"\"              \"","v":"              "},8,"              Cubisme",8,null,null,null,null,null,null,null,null,null,null,38,"WARHOL  Andy ",null,40,"VOLEGOV  Vladimir "]
[39,38,{"$f":"\"      W     \"","v":"      W     "},"      W     WARHOL  Andy ","WARHOL  Andy ",null,null,{"$f":"\"      E      \"","v":"      E      "},9,"      E      Expressionnisme",9,null,null,null,null,null,null,null,null,null,null,39,"ERNI  Hans ",null,38,"WARHOL  Andy "]
[40,8,"              ","              WATTEAU  Antoine ","WATTEAU  Antoine ",null,null,{"$f":"\"      F      \"","v":"      F      "},10,"      F      Fauvisme",10,null,null,null,null,null,null,null,null,null,null,40,"VOLEGOV  Vladimir ",null,8,"WATTEAU  Antoine "]
[null,null,"              ",{"$f":"C90&E90","v":"              "},null,null,null,{"$f":"\"      I       \"","v":"      I       "},11,"      I       Impressionnisme",11]
[null,null,null,null,null,null,null,{"$f":"\"      K      \"","v":"      K      "},12,"      K      Kitsch",12]
[null,null,null,null,null,null,null,{"$f":"\"      M     \"","v":"      M     "},13,"      M     Maniérisme",13]
[null,null,null,null,null,null,null,"              ",14,"              Marine",14]
[null,null,null,null,null,null,null,{"$f":"\"      N     \"","v":"      N     "},15,"      N     Néo-classicisme",15]
[null,null,null,null,null,null,null,{"$f":"\"      P      \"","v":"      P      "},16,"      P      Pointillisme",16]
[null,null,null,null,null,null,null,{"$f":"\"              \"","v":"              "},17,"              Pop Art",17]
[null,null,null,null,null,null,null,"              ",18,"              Postimpressionnisme",18]
[null,null,null,null,null,null,null,"              ",19,"              Pré-Renaissance",19]
[null,null,null,null,null,null,null,{"$f":"\"      R     \"","v":"      R     "},20,"      R     Réalisme",20]
[null,null,null,null,null,null,null,"              ",21,"              Renaissance",21]
[null,null,null,null,null,null,null,"              ",22,"              Rococo",22]
[null,null,null,null,null,null,null,"              ",23,"              Romantisme",23]
[null,null,null,null,null,null,null,{"$f":"\"      S     \"","v":"      S     "},24,"      S     Surréalisme",24]
[null,null,null,null,null,null,null,{"$f":"\"             \"","v":"             "},25,"             Symbolisme",25]
[null,null,null,null,null,null,null,null,26,{"$f":"\"   \"","v":"   "},26]
[]
[null,null,null,null,null,null,null,"              "]
[null,null,null,null,null,null,null,"              "]
[null,null,null,null,null,null,null,"              "]
[null,null,null,null,null,null,null,"              "]
[null,null,null,null,null,null,null,{"$f":"\"      R      \"","v":"      R      "}]
[null,null,null,null,null,null,null,"              "]
[null,null,null,null,null,null,null,{"$f":"\"      S      \"","v":"      S      "}]
[null,null,null,null,null,null,null,{"$f":"\"      V      \"","v":"      V      "}]
[null,null,null,null,null,null,null,"              "]
[null,null,null,null,null,null,null,"              "]
[null,null,null,null,null,null,null,"              "]
[null,null,null,null,null,null,null,"              "]
[null,null,null,null,null,null,null,{"$f":"\"      W      \"","v":"      W      "}]